Cogmind - Beta 17.1 @@@ ROGUE MODE // 2026.09.04 @ 14:47:17 Player: Petvaria Result: Establishing 0b11! Performance ------------- Evolutions (9) 4500 Regions Visited (33) 6600 Robots Destroyed (992) 4960 Value Destroyed (61221) 61221 Prototype IDs (395) 7900 Alien Tech Used (4) 800 Bonus (111195) 111195 TOTAL SCORE: 197176 Bonus ------- Triggered High Security 1500 High Alert Combat Kills 42404 Follower Combat Kills 2165 Prayed to X0-1V1 5000 Major X0-1V1 Interference 21300 Awakened Behemoth Slayer 1000 Subatomizer Sterilization 3000 Aligned with FarCom 300 Met Data Miner 300 Used Data Conduit 3000 Met Imprinter 300 Was Imprinted 300 Met Zhirov 300 Met Warlord at Base 500 MAIN.C Attacked Warlord 500 Warlord Defense Kills 1658 Found Hidden Lab 3000 Scanned by Researcher 500 Pursued by Intercept 1500 Destroyed MAIN.C Guards 500 Met MAIN.C 5000 Destroyed MAIN.C Shell 5000 Destroyed MAIN.C 10000 Win 3000 Friendly Fire -832 Cogmind --------- Core Integrity 668/1325 Matter 900/900 Energy 1233/1240 System Corruption 0% Temperature Cool (5) Movement Walking (210) Ox1 Location 0b11 Command Parts ------- > --- POWER (4) -------- Zero-point Reactor Singularity Reactor > --- PROPULSION (7) --- Experimental Biometal Heavy Treads Enhanced Biometal Leg Experimental Armored Exoskeleton (fused) > --- UTILITY (12) ----- Concept Phasing Heat Sink Experimental Coolant Injector Concept Antigrav Storage Unit Experimental Terrain Scan Processor Experimental Targeting Computer Experimental Core Analyzer Experimental Weapon Cycler (fused) SHELL Armor Graphene Brace Experimental System Purifier > --- WEAPON (3) ------- Enhanced Nova Cannon Enhanced Nova Cannon Multirail > --- INVENTORY (25) --- Improved Quantum Reactor Zero-point Reactor Advanced Heavy Siege Treads Experimental Biometal Leg Experimental Armored Exoskeleton Experimental Energy Well (600) Concept Chromion Battery (800) Experimental Matter Compressor (500) Long-range Terrain Scanner Experimental Targeting Computer Experimental Core Analyzer Experimental Kinecellerator AEGIS Remote Shield Transdimensional Reconstructor Compact HERF Cannon Improved Potential Cannon Linear Accelerator Enhanced Hardcell Cannon Enhanced Hardcell Cannon Enhanced Hardcell Cannon Peak State ------------ > --- POWER ------------ Zionite Light DM Reactor Experimental Antimatter Reactor Hybrid Graviton Reactor Concept Zero-point Core > --- PROPULSION ------- Enhanced Armored Heavy Treads Experimental Heavy Siege Treads Experimental Heavy Siege Treads > --- UTILITY ---------- Concept Phasing Heat Sink Concept Antigrav Storage Unit Experimental Terrain Scan Processor Experimental Core Analyzer Experimental Weapon Cycler Advanced Cloaking Device Zionite Shade Carapace SHELL Armor Graphene Brace AEGIS Remote Shield > --- WEAPON ----------- Null Cannon Improved Potential Cannon Concept XC Strikerail > --- INVENTORY -------- Reinforced Antimatter Reactor Quantum Reactor Light Quantum Reactor Light Quantum Reactor Biometal Leg Experimental Armored Exoskeleton Experimental Armored Exoskeleton Concept Chromion Battery Long-range Terrain Scanner Experimental Kinecellerator Experimental Phase Shifter Experimental Force Field Long-range Tractor Beam Transdimensional Reconstructor Compact HERF Cannon Enhanced Nova Cannon Gamma Bomb Array Fusion Bomb Launcher Fusion Bomb Launcher [Rating: 303] Favorites ----------- Power Light Quantum Reactor Engine Improved Deuterium Engine Power Core Concept Zero-point Core Reactor Light Quantum Reactor Propulsion Armored Treads Treads Armored Treads Leg Experimental Armored Exoskeleton Wheel Wheel Utility Huge Storage Unit Device X0-1V1's Piety Tracker Storage Huge Storage Unit Processor Experimental Terrain Scan Processor Hackware System Mapper Protection SHELL Armor Artifact LC Capacitor Weapon Improved Assault Rifle Energy Gun Beamcaster Energy Cannon Enhanced Nova Cannon Ballistic Gun Improved Assault Rifle Ballistic Cannon Magnetic Acceleration Cannon Launcher Heavy Missile Launcher Special Weapon Improved Remote Datajack Impact Weapon Heavy Flail Slashing Weapon Heavy Scimitar of Distortion Piercing Weapon CR-A16's Pointy Stick Build | -11 -10 -10 -10 -9 -8 -7 -7 -7 -7 -6 -6 -6 -6 -6 -5 -5 -5 -5 -5 -4 -4 -4 -4 -4 -3 -3 -3 -3 -2 -2 -2 -1 -1 ------- Run | Yrd Mat Min Exi Min Mat Fac Low Low Zio Pro Fac Low Low Dat Pro Fac Upp Upp War Pro Fac Upp Upp Zhi Pro Res Arm Lab Res Tes Frg Acc Com Slots Evolved 18 | . . . . . 4 2 . . . . 2 . . . . 2 . . . . 2 . . . . 2 . . 2 . . 2 . Power 3 | . . . . . . . . . . . . . . . . 1 . . . . . . . . . 1 . . . . . 1 . Propulsion 4 | . . . . . 2 . . . . . 2 . . . . . . . . . . . . . . . . . . . . . . Utility 9 | . . . . . 2 1 . . . . . . . . . 1 . . . . 1 . . . . 1 . . 2 . . 1 . Weapon 2 | . . . . . . 1 . . . . . . . . . . . . . . 1 . . . . . . . . . . . . Parts Attached 388 | 7 6 12 . . 32 27 . 3 1 . 8 13 3 13 2 15 3 12 17 7 9 5 6 3 2 19 7 7 21 12 39 9 68 Power 52 | 1 . 2 . . 4 2 . . . . 2 . 1 1 . 2 . 1 1 . . . 1 1 1 3 . 1 3 2 5 2 16 Engine 6 | 1 . 2 . . 1 1 . . . . 1 . . . . . . . . . . . . . . . . . . . . . . Core 11 | . . . . . 3 1 . . . . 1 . 1 . . 1 . 1 . . . . . . . 1 . . . . 2 . . Reactor 35 | . . . . . . . . . . . . . . 1 . 1 . . 1 . . . 1 1 1 2 . 1 3 2 3 2 16 Propulsion 88 | 2 . 2 . . 9 11 . . . . 2 5 . . 2 4 . 4 5 4 1 . . . . 4 4 . 4 . 12 1 12 Treads 65 | 2 . 2 . . 9 11 . . . . 2 5 . . . 4 . 4 1 4 1 . . . . 4 4 . 4 . 4 . 4 Leg 20 | . . . . . . . . . . . . . . . 2 . . . 4 . . . . . . . . . . . 5 1 8 Wheel 3 | . . . . . . . . . . . . . . . . . . . . . . . . . . . . . . . 3 . . Hover . | . . . . . . . . . . . . . . . . . . . . . . . . . . . . . . . . . . Flight . | . . . . . . . . . . . . . . . . . . . . . . . . . . . . . . . . . . Utility 151 | 2 2 5 . . 9 7 . 3 1 . 3 5 2 8 . 5 2 3 6 2 6 3 5 . 1 8 2 4 6 5 17 6 23 Device 85 | 1 1 4 . . 4 2 . 2 1 . 2 3 1 4 . 2 2 1 4 1 4 2 4 . 1 1 2 2 2 2 11 2 17 Storage 11 | 1 1 . . . 2 1 . . . . . . . . . . . . . . . . . . . 1 . 1 . . 1 1 2 Processor 24 | . . . . . . 2 . 1 . . 1 1 . 1 . 2 . . . 1 2 1 . . . 3 . . 1 2 4 . 2 Hackware 2 | . . . . . . . . . . . . . . . . . . . . . . . . . . . . . . . . . 2 Protection 28 | . . 1 . . 3 2 . . . . . 1 1 3 . 1 . 2 2 . . . 1 . . 3 . . 3 1 1 3 . Artifact 1 | . . . . . . . . . . . . . . . . . . . . . . . . . . . . 1 . . . . . Weapon 97 | 2 4 3 . . 10 7 . . . . 1 3 . 4 . 4 1 4 5 1 2 2 . 2 . 4 1 2 8 5 5 . 17 Energy Gun 18 | 1 . . . . 2 1 . . . . 1 1 . 1 . 1 . 1 1 . 2 1 . . . 2 . . 1 . 1 . 1 Energy Cannon 24 | . . . . . . . . . . . . . . . . 2 . 1 1 . . 1 . 1 . 1 . 1 3 5 . . 8 Ballistic Gun 37 | 1 3 3 . . 7 4 . . . . . 2 . 2 . 1 . 1 2 . . . . 1 . 1 . . 4 . 3 . 2 Ballistic Cannon 6 | . . . . . . . . . . . . . . . . . 1 . . . . . . . . . . . . . . . 5 Launcher 6 | . . . . . 1 1 . . . . . . . . . . . 1 . . . . . . . . 1 . . . 1 . 1 Special Weapon 2 | . . . . . . . . . . . . . . . . . . . 1 . . . . . . . . 1 . . . . . Impact Weapon 2 | . 1 . . . . 1 . . . . . . . . . . . . . . . . . . . . . . . . . . . Slashing Weapon . | . . . . . . . . . . . . . . . . . . . . . . . . . . . . . . . . . . Piercing Weapon 2 | . . . . . . . . . . . . . . 1 . . . . . 1 . . . . . . . . . . . . . Special Melee Weapon . | . . . . . . . . . . . . . . . . . . . . . . . . . . . . . . . . . . Unidentified Prototypes 52 | . 1 1 . . 3 2 . . . . . . . . . . . . 4 . . . . 1 . 3 1 7 1 5 13 2 8 Corrupted Parts 11 | . . . . . . . . . . . . . . . . 3 . 1 . . . . . . . . . 3 . 1 . . 3 System Corruption 58 | . . . . . . . . . . . . . . . . 14 . 9 . . . . . . . . . 15 . 1 . . 19 Parts Lost 82 | . . 2 . . 6 . . 2 . . 1 3 1 3 2 7 3 5 1 . . . 2 . . 4 . . 6 3 9 1 21 Power 14 | . . . . . 2 . . . . . . . . . . 1 . . . . . . . . . 1 . . 1 1 1 . 7 Propulsion 24 | . . . . . . . . . . . 1 1 . 2 2 5 . 5 1 . . . . . . . . . 1 . 3 . 3 Utility 31 | . . 1 . . 4 . . 2 . . . . 1 1 . . 2 . . . . . 2 . . 2 . . 2 2 3 1 8 Weapon 13 | . . 1 . . . . . . . . . 2 . . . 1 1 . . . . . . . . 1 . . 2 . 2 . 3 Highest Loss Streak 7 | . . 2 . . 2 . . 1 . . 1 3 1 3 1 4 2 4 1 . . . 2 . . 4 . . 3 2 2 1 7 To Critical Strikes 1 | . . . . . . . . . . . . . . . . . . . . . . . . . . . . . . 1 . . . Average Backups 20 | 3 9 9 9 9 14 19 22 19 22 23 22 23 23 23 23 24 23 24 24 25 24 24 24 22 24 24 24 24 22 22 21 16 18 Power . | . . . . . . . 1 1 1 1 1 1 . . 1 . . . . . . 1 . . . . 1 1 1 1 . . 1 Propulsion 2 | 1 1 2 2 2 1 3 6 4 5 5 3 3 3 2 2 . . . 1 3 3 2 2 2 2 2 2 2 2 2 1 2 2 Utility 8 | . 1 2 3 4 4 5 6 5 5 6 7 8 7 9 11 13 12 13 14 12 12 11 11 10 12 11 12 12 11 12 12 10 7 Weapon 7 | . 4 4 3 3 8 8 9 8 10 11 11 10 10 10 9 9 10 9 9 8 7 9 8 8 7 8 8 7 7 5 6 3 6 Tool/Special . | . . . . . . . . . . . . . . . . . . . . . . . . . . . . . . . . . . Unused Backups 74 | . 3 2 2 . 4 4 . 1 . . 1 . 1 . . 1 1 1 3 4 5 2 2 . 1 3 2 3 3 3 5 3 14 Power 6 | . 1 . . . . . . . . . 1 . . . . . . . . . . . . . . . . . 1 . . 1 2 Propulsion 17 | . 1 1 . . . 1 . . . . . . . . . . . . 1 1 1 . . . . . 2 . 1 1 2 . 5 Utility 24 | . . . . . 1 . . . . . . . . . . 1 1 . 1 1 4 1 2 . 1 3 . . 1 2 1 . 4 Weapon 21 | . 1 1 1 . 3 2 . 1 . . . . 1 . . . . . 1 2 . 1 . . . . . 1 . . 2 2 2 Tool/Special 6 | . . . 1 . . 1 . . . . . . . . . . . 1 . . . . . . . . . 2 . . . . 1 Average Slot Usage (%) 86 | . 99 99 100 100 94 95 97 96 94 100 99 99 98 94 98 77 76 80 85 88 89 90 86 85 94 94 92 93 84 84 75 74 75 Engine 2 | . 13 13 14 14 2 4 7 7 7 7 5 . . . . . . . . . . . . . . . . . . . . . . Core 1 | . . . . . 5 1 . . . . . 6 5 4 . . . 1 1 . . . . . . 2 4 4 1 . 4 3 1 Reactor 5 | . . . . . . . . . . . . . . 1 6 4 4 5 5 5 5 5 4 7 10 10 9 9 9 11 7 10 12 Treads 18 | . 27 27 28 28 35 25 28 27 28 28 36 36 37 36 35 17 11 12 10 19 25 25 25 25 25 21 20 21 20 20 9 7 3 Leg 3 | . . . . . . . . . . . . . . . . 7 10 7 15 8 . . . . . . . . . . 4 2 7 Device 16 | . 13 12 14 14 15 19 21 17 18 21 18 17 17 15 10 6 10 11 13 11 12 10 14 20 20 17 21 19 12 14 13 15 20 Storage 5 | . 13 13 14 14 9 6 7 7 7 7 6 6 6 6 6 5 5 5 5 5 5 5 5 5 5 4 4 4 4 4 4 3 3 Processor 8 | . . . . . . 4 7 7 7 7 6 6 6 8 12 11 11 11 11 11 14 19 15 10 10 14 13 13 10 10 12 11 8 Protection 4 | . . . . . 8 6 7 7 7 7 5 6 6 6 7 6 4 6 7 11 7 5 5 4 4 2 . . 2 4 5 6 3 Energy Gun 2 | . 3 . . . . . . . . . 4 4 . 2 6 2 5 2 5 5 10 10 8 5 5 6 4 4 2 3 . . 1 Energy Cannon 3 | . . . . . . . . . . . . . . . . 4 . . 2 5 5 5 5 6 10 4 3 3 7 8 7 6 7 Ballistic Gun 9 | . 25 28 28 28 15 23 18 17 16 21 13 13 18 8 12 7 4 9 3 3 5 5 3 1 5 6 9 8 5 1 3 3 1 Peak Build Rating 303 | 7 24 24 25 25 49 70 66 56 58 59 67 68 68 85 86 100 91 97 133 137 147 140 147 138 138 169 175 203 226 237 288 288 303 Average Rating 145 | 5 13 20 24 25 38 60 59 53 55 58 60 63 65 72 82 81 85 87 108 126 137 137 131 120 136 156 171 180 212 221 247 282 271 On Entrance 102 | . 7 24 23 25 25 43 66 56 54 58 59 67 68 66 85 86 82 86 91 127 122 139 137 111 136 138 169 173 198 222 219 231 285 Avg Prop Armor Cover (%) 6 | . . . . . 6 . . . . . . . . . 3 2 10 3 8 6 . . . . . 5 . . . . 10 1 5 Naked Turns . | . . . . . . . . . . . . . . . . . . . . . . . . . . . . . . . . . . Heaviest Build 222 | 15 25 26 22 22 62 111 109 105 105 105 107 107 112 120 127 145 132 140 164 164 172 151 153 150 152 185 185 188 217 219 222 170 199 Greatest Support 280 | 40 40 40 40 40 80 86 80 80 80 80 120 120 120 120 120 109 56 102 103 176 183 183 183 183 183 210 210 210 215 215 215 200 280 Greatest Overweight (x) 10 | . 1 . . . . 1 1 1 1 1 . 1 . . 1 2 4 4 5 1 . . . . . 1 1 1 1 1 10 . 1 Average Overweight (x) . | . . . . . . . 1 1 1 1 . . . . . 1 1 1 1 . . . . . . . . . . . . . . Largest Inventory Capacity 25 | 8 10 10 10 10 20 25 25 25 25 25 25 25 25 25 25 25 25 25 25 25 25 25 25 25 25 25 25 25 25 25 25 25 25 Average Capacity 22 | 7 9 10 10 10 16 21 25 25 25 25 25 25 25 25 25 25 25 25 25 25 25 25 25 25 25 25 25 25 25 25 25 25 25 Most Carried 25 | 5 10 10 10 10 20 25 25 23 25 25 25 25 25 25 25 25 25 25 25 25 25 25 25 25 25 25 25 25 25 25 25 25 25 Average Carried 22 | 3 9 9 9 10 15 21 23 20 23 24 23 24 24 24 24 24 23 24 24 24 24 24 24 22 24 24 24 24 24 24 24 23 24 Final Capacity 25 | 8 10 10 10 10 20 25 25 25 25 25 25 25 25 25 25 25 25 25 25 25 25 25 25 25 25 25 25 25 25 25 25 25 25 Final Carried 25 | 5 10 10 10 10 20 25 23 22 23 25 25 25 22 25 24 25 23 25 25 25 25 25 22 24 25 25 24 25 25 23 24 24 25 Class Distribution -------------------- 31% | Scavenger-Tank 12% | Scavenger-Mutant 10% | Generator-Tank 8% | Generator-Gunner 8% | Scavenger-Gunner 7% | Scavenger-Skirmisher 5% | Mutant 4% | Tank Dominant Class ---------------- Mutant | -10/Materials Scavenger-Mutant | -10/Mines Scavenger-Mutant | -10/Exiles Scavenger-Mutant | -9/Mines Scavenger-Mutant | -8/Materials Scavenger-Executioner | -7/Factory Scavenger-Skirmisher | -7/Lower Caves Scavenger-Mutant | -7/Lower Caves Scavenger-Tank | -7/Zion Scavenger-Tank | -6/Proximity Caves Scavenger-Tank | -6/Factory Scavenger-Tank | -6/Lower Caves Scavenger-Tank | -6/Lower Caves Scavenger-Mutant | -6/Data Miner Scavenger-Gunner | -5/Proximity Caves Scavenger-Gunner | -5/Factory Scavenger-Gunner | -5/Upper Caves Scavenger-Gunner | -5/Upper Caves Scavenger-Tank | -5/Warlord Scavenger-Tank | -4/Proximity Caves Scavenger-Tank | -4/Factory Scavenger-Tank | -4/Upper Caves Scavenger-Tank | -4/Upper Caves Scavenger-Skirmisher | -4/Zhirov Scavenger-Tank | -3/Proximity Caves Scavenger-Tank | -3/Research Scavenger-Tank | -3/Armory Scavenger-Tank | -3/Lab Messiah-Tank | -2/Research Scavenger-Tank | -2/Testing Tank | -2/Protoforge Generator-Tank | -1/Access Generator-Gunner | -1/Command Resources | -11 -10 -10 -10 -9 -8 -7 -7 -7 -7 -6 -6 -6 -6 -6 -5 -5 -5 -5 -5 -4 -4 -4 -4 -4 -3 -3 -3 -3 -2 -2 -2 -1 -1 ----------- Run | Yrd Mat Min Exi Min Mat Fac Low Low Zio Pro Fac Low Low Dat Pro Fac Upp Upp War Pro Fac Upp Upp Zhi Pro Res Arm Lab Res Tes Frg Acc Com Matter Collected 19525 | 300 323 502 . . 985 1540 174 321 . 40 243 812 121 373 603 477 307 490 358 172 197 144 56 74 118 635 59 . 587 837 2962 430 5285 Remotely 773 | . . . . . . . . . . . . . . . . . . . . . . . . . . . . . . . . 162 611 Salvage Created 52207 | 219 585 545 . . 2083 1428 117 195 . . 537 645 113 373 391 514 216 568 790 620 133 . 68 373 . 1725 83 . 2178 903 13365 8570 14870 Parts 1925 | 13 48 39 . . 135 83 3 7 . . 33 26 1 16 25 12 18 24 22 26 10 . 3 4 . 79 3 . 92 38 445 245 475 Haulers Intercepted 9 | . 1 . . . 5 3 . . . . . . . . . . . . . . . . . . . . . . . . . . . Recyclers Shooed 14 | 1 2 . . . 5 1 . . . . 1 . 1 . . . . . . . . . . . . . . . 1 1 . . 1 Parts Field Recycled . | . . . . . . . . . . . . . . . . . . . . . . . . . . . . . . . . . . Retrieved Matter . | . . . . . . . . . . . . . . . . . . . . . . . . . . . . . . . . . . Parts Self-Destructed 98 | . . . . . . . 3 6 . . . 25 . . 31 . 12 9 . 7 . . 1 4 . . . . . . . . . Prevented 17 | . . . . . . . 1 . . 11 . . . . . . 1 4 . . . . . . . . . . . . . . . Parts Restored 2 | . . . . . . . . . . . . . . . . . . . . . . . . . . . . . . . 2 . . Faulty 2 | . . . . . . . . . . . . . . . . . . . . . . . . . . . . . . . 2 . . Kills | -11 -10 -10 -10 -9 -8 -7 -7 -7 -7 -6 -6 -6 -6 -6 -5 -5 -5 -5 -5 -4 -4 -4 -4 -4 -3 -3 -3 -3 -2 -2 -2 -1 -1 ------- Run | Yrd Mat Min Exi Min Mat Fac Low Low Zio Pro Fac Low Low Dat Pro Fac Upp Upp War Pro Fac Upp Upp Zhi Pro Res Arm Lab Res Tes Frg Acc Com Combat Hostiles Destroyed 837 | . 14 11 . . 39 25 4 3 . . 8 12 . 4 9 10 10 7 14 3 2 . . . . 20 1 . 25 13 231 136 236 Melee 2 | . . . . . . . . . . . . . . . . . . . 1 . . . . . . . . . . . . . 1 Guns 195 | . 14 11 . . 32 25 1 1 . . 7 12 . 4 9 5 . . 5 . 2 . . . . 14 1 . 4 1 36 2 9 Cannons 276 | . . . . . . . . . . . 1 . . . . 1 . 1 7 . . . . . . 3 . . 16 6 84 55 102 AOE 286 | . . . . . 7 . 3 2 . . . . . . . 4 9 6 . 2 . . . . . 1 . . . 3 80 71 98 Classes Destroyed 33 | 3 6 . . . 4 1 1 1 . . 1 1 . . . 1 1 . 3 . . . . . . 1 . . . 2 4 1 2 Worker 40 | 2 2 1 . . 5 2 . . . . . . . . . . . . . . . . . . . . . . 3 1 7 7 10 Builder 25 | . 1 . . . 2 2 . . . . . . . . . . . . . . . . . . . 2 . . 1 3 5 9 . Tunneler 4 | 3 . . . . . 1 . . . . . . . . . . . . . . . . . . . . . . . . . . . Hauler 9 | . 1 . . . 5 3 . . . . . . . . . . . . . . . . . . . . . . . . . . . Recycler 16 | 1 1 2 . . 2 1 . . . . . . . . . . . . . . . . . . . 2 . . . . . 2 5 Carrier 28 | . . . . . . . . . . . . . . . . . . . . . . . . . . . . . . . 4 12 12 Mechanic 25 | . . . . . . . . . . . 2 . . . . . . . . . . . . . . . . . . . 8 4 11 Operator 3 | . . . . . 1 1 . . . . . . . . . . . . . . . . . . . . . . . . . . 1 Drone 22 | . . . . . . . . . . . . . . . . 1 . . . 2 . . . . . . . . . . 18 . 1 Watcher 18 | . 2 . . . 3 1 . . . . . . . . . . . . . . . . . . . . . . 1 . . 1 10 Swarmer 70 | . 8 5 . . 14 5 . . . . . 2 . . 4 . 9 5 1 . . . . . . . . . . . . 5 12 Cutter 9 | . . . . . . . . . . . . . . . . . . . . . . . . . . . . . . . . . 9 Saboteur 19 | . . . . . . . . . . . . . . . . . . . 1 . . . . . . . . . . . 2 5 11 Grunt 267 | . 5 4 . . 12 12 3 3 . . 5 2 . . 1 3 . . 7 . . . . . . 4 1 . 8 5 72 48 72 Brawler 57 | . . . . . 1 1 . . . . . . . . . . . . . . . . . . . . . . . 1 22 14 18 Duelist 44 | . . . . . . . 1 . . . 1 3 . . . . . . . . . . . . . . . . . 1 19 7 12 Protector 29 | . . . . . . . . . . . . . . . . . . . . . . . . . . . . . . 1 9 6 13 Researcher 4 | . . . . . . . . . . . . . . . . . . . . . . . . . . . . . . 1 3 . . Sentry 52 | . 1 2 . . 9 2 . . . . . . . . 1 4 . . . . . . . . . 1 . . 4 . 11 8 9 Demolisher 3 | . . . . . . . . . . . . . . . . . . . 2 . . . . . . . . . . . . . 1 Specialist 11 | . . . . . . . . . . . . . . . . . . . . . . . . . . 2 . . 2 . 3 . 4 Hunter 47 | . . . . . 1 . . . . . . . . . 2 . . 2 . . 2 . . . . 3 . . 2 2 7 15 11 Programmer 83 | . . . . . . 5 . . . . 1 . . . 1 2 . . 2 . . . . . . 10 . . 7 2 20 16 17 Heavy 5 | . . . . . 2 . . . . . 1 . . . . . . . . . . . . . . . . . . . . . 2 Q-Series 3 | . . . . . . . . . . . . . . . . . . . . . . . . . . . . . . . 3 . . Behemoth 6 | . . . . . . . . . . . . . . . . . 1 . . 1 . . . . . . . . . . . . 4 M Guard 2 | . . . . . . . . . . . . . . . . . . . . . . . . . . . . . . . . . 2 Enhanced Grunt 4 | . . . . . . . . . . . . . . 4 . . . . . . . . . . . . . . . . . . . Hotshot 7 | . . . . . . . . . . . . . . . . . . . . . . . . . . . . . . . 7 . . Decapitator 15 | . . . . . . . . . . . . . . . . . . . . . . . . . . . . . . . 15 . . Immortal 4 | . . . . . . . . . . . . . . . . . . . . . . . . . . . . . . . 4 . . Tracker 7 | . . . . . . . . . . . . . . . . . . . . . . . . . . . . . . . 7 . . Combat Programmer 6 | . . . . . . . . . . . . . . . . . . . . . . . . . . . . . 1 . 4 . 1 Investigator 6 | . . . . . . . . . . . . . . . . . . . . . . . . . . . . . . . . 2 4 Striker 20 | . . . . . . . . . . . . . . . . . . . 1 . . . . . . . . . . . . 4 15 Executioner 25 | . . . . . . . . . . . . . . . . . . . . . . . . . . . . . . . . 8 17 Alpha 7 2 | . . . . . . . . . . . . . . . . . . . . . . . . . . . . . . . . . 2 V-Series 4 | . . . . . . . . . . . . . . . . . . . . . . . . . . . . . . . 4 . . Protovariant H 1 | . . . . . . . . . . . . . . . . . . . . . . . . . . . . . . 1 . . . Decomposer 1 | . . . . . . . . . . . . . . . . . 1 . . . . . . . . . . . . . . . . Packrat 5 | . . . . . . . . 1 . . . . 2 . . . . 2 . . . . . . . . . . . . . . . Samaritan 4 | . . . . . . . . 1 . . . . . . . . . 3 . . . . . . . . . . . . . . . Thug 4 | . . . . . . . . . . . . . . . . . . . . . . . . . . . . . . . 4 . . Savage 3 | . . . . . . . . . . . . 3 . . . . . . . . . . . . . . . . . . . . . Fireman 2 | . . . . . . . . . . . . . . . . . . . . . . . . . . . . . . . . . 2 Mutant 3 | . . . . . . . . . . . . 2 . . . . . 1 . . . . . . . . . . . . . . . Commander 2 | . . . . . . . . . . . . . . . . . . . 1 . . . 1 . . . . . . . . . . Best Kill Streak 40 | 6 3 4 . . 8 6 4 3 . . 5 4 . 2 3 3 5 5 7 3 2 . . . . 5 1 . 9 6 23 34 40 Combat Bots Only 34 | . 3 3 . . 5 5 4 3 . . 4 4 . 2 3 3 5 5 7 3 2 . . . . 4 1 . 8 4 18 29 34 Max Kills in Single Turn 5 | 1 2 2 . . 3 1 2 2 . . 2 2 1 1 1 1 4 3 1 2 1 . 1 . . 2 1 . 2 2 4 5 5 Gunslinging 1 | . 1 1 . . . . . . . . 1 1 . . . . . . . . . . . . . . . . . . . . . Exploded 4 | . . . . . 3 . 2 2 . . . . . . . 1 4 3 . 2 . . . . . 1 . . . 1 3 3 4 Melee 1 | . . . . . . . . . . . . . . . . . . . 1 . . . . . . . . . . . . . 1 Uniques/NPCs Destroyed 4 | . . . . . . . . . . . . . . . . . . . . . . . . . . . . 1 1 . . . 2 A5 (-3/Lab) CL-ANK (-2/Research) MAIN.C Shell (-1/Command) MAIN.C (-1/Command) Combat | -11 -10 -10 -10 -9 -8 -7 -7 -7 -7 -6 -6 -6 -6 -6 -5 -5 -5 -5 -5 -4 -4 -4 -4 -4 -3 -3 -3 -3 -2 -2 -2 -1 -1 -------- Run | Yrd Mat Min Exi Min Mat Fac Low Low Zio Pro Fac Low Low Dat Pro Fac Upp Upp War Pro Fac Upp Upp Zhi Pro Res Arm Lab Res Tes Frg Acc Com Hostile Shots Fired 3968 | . 53 60 . . 140 107 4 15 . 1 45 79 6 35 44 123 55 40 30 21 16 . 7 . . 252 . . 312 148 803 241 1331 Missed 1003 | . 16 11 . . 36 36 1 6 . 1 15 19 1 8 14 25 16 16 10 4 5 . . . . 62 . . 62 37 210 104 288 Deflected 6 | . . . . . . . . . . . . . . . . . . . . . . . . . . . . . . . . . 6 Hits 2965 | . 37 49 . . 104 71 3 9 . . 30 60 5 27 30 98 39 24 20 17 11 . 7 . . 190 . . 250 111 593 137 1043 Melee 260 | . . . . . . . . 5 . . 1 6 5 . . 31 2 . . . . . 7 . . . . . 13 . 119 . 71 Projectile 2705 | . 37 49 . . 104 71 3 4 . . 29 54 . 27 30 67 37 24 20 17 11 . . . . 190 . . 237 111 474 137 972 AOE 33 | . . . . . . . . . . . . . . . . . . . 1 . . . . . . . . . . . 9 1 22 Critical Strikes 231 | . 1 1 . . 5 3 1 . . . 2 1 . . 1 6 2 1 . 1 1 . . . . 9 . . 18 8 89 5 76 Actively Blocked 176 | . . . . . . . . . . . 2 . . . . . . . . . . . . . . . . . 12 1 84 2 75 Part Disruptions 27 | . . . . . . 2 . . . . . . . 3 . . . . . . . . . . . 4 . . 3 . 2 . 13 Damage Taken 45791 | . 365 630 . . 1679 1017 46 74 . 13 604 1059 8 1261 511 1671 821 435 518 331 131 . 5 . . 2436 . . 4989 1505 8398 1824 15460 Core 2863 | . 79 52 . . 118 38 . 8 . . 58 86 . 90 62 94 91 14 9 82 . . . . . 173 . . 281 50 477 83 918 Absorbed by Shields 26402 | . . . . . . . . . . . . . . . . . . . 161 257 125 . . . . 690 . . 1917 1093 7552 1625 12982 Reduced by Siege Mode 1060 | . . . . . . . . . . . . . . . . . . . . . . . . . . 30 . . 295 12 23 64 636 Redirected to Shielding 666 | . . . . . . . . . . . . . . . . . . 9 . 39 . . . . . . . . . 133 132 232 121 Ignored by Resistances 5123 | . . . . . . . . . . . . . . . . . . . . . . . . . . 405 . . 249 352 2446 . 1671 Regen/Repaired (Parts) 9401 | . . . . . . . . . . . . . . . . . . . 220 . . . . . . . . . . 340 3014 933 4894 Core Remaining (%) 73 | 100 . . . 58 84 . . . . 89 . . . . 48 . . . . 76 . . . . 100 . . 78 . . 54 . 50 Volleys Fired 2469 | 10 34 35 . . 79 50 5 8 . 1 28 34 6 33 17 46 6 26 32 4 33 7 4 1 . 83 30 46 150 81 619 198 763 Largest 7 | 2 3 2 . . 2 7 3 3 . 3 3 3 3 3 3 3 3 3 3 1 4 1 4 4 . 4 3 1 4 4 4 2 4 Hottest 411 | 70 70 46 . . 46 161 69 69 . 69 121 126 79 131 131 205 205 108 203 75 284 98 311 307 . 311 184 113 363 300 350 200 411 Shots Fired 4035 | 20 73 70 . . 242 249 14 21 . 3 84 97 19 96 47 103 11 52 84 4 42 7 11 4 . 189 32 41 241 130 764 212 1073 Gun 1780 | 20 73 70 . . 239 249 11 20 . 3 84 97 19 96 47 62 5 38 55 3 9 . 6 2 . 119 6 . 48 21 244 20 114 Cannon 2204 | . . . . . . . . . . . . . . . . 38 2 9 23 . 33 7 5 2 . 64 26 40 190 109 519 192 945 Launcher 44 | . . . . . 3 . 3 1 . . . . . . . 3 4 5 . 1 . . . . . 6 . . 3 . 1 . 14 Special 7 | . . . . . . . . . . . . . . . . . . . 6 . . . . . . . . 1 . . . . . Kinetic 1552 | 10 56 70 . . 239 249 11 20 . 3 56 73 19 64 32 49 3 39 26 . 3 . 2 1 . 64 6 . 29 8 216 20 184 Thermal 2327 | 10 17 . . . . . . . . . 28 24 . 32 15 51 4 . 52 3 39 7 9 3 . 119 26 40 209 118 506 192 823 Explosive 19 | . . . . . 3 . 3 1 . . . . . . . 3 4 3 . . . . . . . . . . . . . . 2 Electromagnetic 130 | . . . . . . . . . . . . . . . . . . 10 . 1 . . . . . 6 . . 3 4 42 . 64 Robot Hit Streak 38 | 5 13 11 . . 23 22 4 2 . 3 17 11 6 6 10 24 10 22 16 4 3 . 12 . . 23 4 . 16 13 38 30 29 Robot Miss Streak 23 | 2 4 3 . . 3 6 1 2 . 2 4 4 8 5 4 23 1 2 2 1 1 . . . . 3 3 . 3 6 7 3 12 Penetration Max 2 | . . . . . . . . . . . . . . . . 1 . . 1 . . . . . . 1 . . 1 1 2 . 2 Secondary Targets 21 | . 3 2 . . 1 4 . . . . 3 2 . 1 2 . . . . . . . . . . 3 . . . . . . . Max Gunslinging Chain 2 | . 1 1 . . 1 1 . . . . 2 1 . 1 1 . . . . . . . . . . 1 . . . . . . . Autonomous 140 | . . . . . 88 48 4 . . . . . . . . . . . . . . . . . . . . . . . . . . Shots Hit Robots 2294 | 11 43 50 . . 187 163 8 11 . 1 62 67 14 57 25 63 7 39 56 17 5 . 9 6 . 115 4 . 119 41 479 125 510 Core Hits 1495 | 7 21 22 . . 82 63 7 7 . . 25 41 19 26 14 32 13 24 29 8 3 . 1 . . 49 3 . 55 22 367 159 396 Critical Kills 84 | . 1 1 . . 2 . . . . . . . . 1 3 1 . . . . . . 1 . . 3 1 . 3 3 37 7 20 Critical Parts Destroyed 34 | . . . . . . 4 . . . . . . . 4 3 4 . . . . . . . . . 2 . . . . 15 1 1 Critical Strikes 153 | . 5 1 . . 2 4 . . . . 3 . . 6 7 6 . . 6 3 . . 1 1 . 8 1 . 5 3 57 8 26 Burn 21 | . 4 . . . . . . . . . 3 . . . 1 . . . 6 . . . . . . 3 . . 2 . 2 . . Meltdown 55 | . . . . . . . . . . . . . . . . . . . . . . . 1 . . 1 . . 3 3 27 6 14 Destroy 69 | . 1 1 . . 2 4 . . . . . . . 6 6 6 . . . . . . . . . 4 1 . . . 27 2 9 Blast 2 | . . . . . . . . . . . . . . . . . . . . . . . . . . . . . . . . . 2 Corrupt 1 | . . . . . . . . . . . . . . . . . . . . . . . . . . . . . . . 1 . . Sever 1 | . . . . . . . . . . . . . . . . . . . . . . . . . . . . . . . . . 1 Impale 4 | . . . . . . . . . . . . . . . . . . . . 3 . . . 1 . . . . . . . . . Melee Attacks 83 | . 1 . . . . 7 . 7 1 . 1 . . 25 . 2 3 . . 30 . . . 6 . . . . . . . . . Impact 17 | . 1 . . . . 7 . 7 1 . 1 . . . . . . . . . . . . . . . . . . . . . . Slashing . | . . . . . . . . . . . . . . . . . . . . . . . . . . . . . . . . . . Piercing 66 | . . . . . . . . . . . . . . 25 . 2 3 . . 30 . . . 6 . . . . . . . . . Sneak Attacks 3 | . . . . . . . . 2 . . . . . 1 . . . . . . . . . . . . . . . . . . . Combat Hostiles . | . . . . . . . . . . . . . . . . . . . . . . . . . . . . . . . . . . Follow-up Attacks . | . . . . . . . . . . . . . . . . . . . . . . . . . . . . . . . . . . Damage Inflicted 213380 | 140 645 803 . 12 4495 3545 536 523 . 17 1272 1197 282 1251 640 2026 842 1198 2204 1164 141 . 263 433 . 4487 128 . 6262 3666 58999 39115 77094 Guns 31406 | 140 626 790 . . 3965 3472 105 117 . 17 1213 1197 282 1179 640 1092 64 566 1071 47 93 . 163 . . 2863 82 . 994 343 7168 401 2716 Cannons 95877 | . . . . . . . . . . . 59 . . . . 586 . 195 695 . 39 . 100 . . 1295 46 . 5006 2306 26200 18155 41195 Explosions 83670 | . . . . . 464 . 431 164 . . . . . . . 348 711 437 438 68 . . . . . 272 . . 257 1000 25445 20559 33076 Melee 1922 | . . . . . . 59 . 242 . . . . . 72 . . 67 . . 1049 . . . 433 . . . . . . . . . Ramming 465 | . 19 13 . 12 66 14 . . . . . . . . . . . . . . 9 . . . . 57 . . 5 17 186 . 67 Kinetic 29500 | 40 516 790 . . 3965 3472 105 117 . 17 808 768 282 913 410 811 8 566 566 . . . 58 . . 1574 82 . 515 149 6488 401 6079 Thermal 173775 | 100 110 . . . . . . . . . 464 429 . 266 230 867 56 . 1638 47 132 . 205 . . 2584 46 . 5485 3408 51223 38486 67999 Explosive 3166 | . . . . . 464 . 431 164 . . . . . . . 296 711 347 . . . . . . . . . . . . . 60 693 Electromagnetic 4344 | . . . . . . . . . . . . . . . . 52 . 285 . 68 . . . . . 272 . . 257 92 1102 . 2216 Impact 301 | . . . . . . 59 . 242 . . . . . . . . . . . . . . . . . . . . . . . . . Slashing 40 | . . . . . . . . . . . . . . . . . . . . . . . . . . . . . . . . . 40 Piercing 1621 | . . . . . . . . . . . . . . 72 . . 67 . . 1049 . . . 433 . . . . . . . . . Entropic 168 | . . . . . . . . . . . . . . . . . . . . . . . . . . . . . . . . 168 . Highest Corruption 50 | . . . . . 18 5 13 13 13 . 2 5 31 31 31 14 14 23 23 9 . . . . . 32 32 47 24 39 47 4 50 Average Corruption 15 | . . . . . 14 2 9 13 13 . 1 4 17 31 31 12 14 15 8 6 . . . . . 14 32 32 8 25 29 1 13 Corruption Purged 48 | . . . . . . . . . . . . . . . . . . . . . . . . . . . . . . . . . 48 Corruption Blocked . | . . . . . . . . . . . . . . . . . . . . . . . . . . . . . . . . . . Effects 1076 | . . . . . 55 17 49 42 2 . 1 9 22 41 34 24 42 46 24 23 . . . . . 21 21 34 19 65 228 15 242 Message Errors 253 | . . . . . 16 6 12 13 . . 1 4 4 10 3 5 12 10 6 9 . . . . . 6 5 8 4 12 51 1 55 Matter Fused 227 | . . . . . 14 4 9 11 . . . 3 7 5 9 7 14 9 3 2 . . . . . 3 2 6 4 14 43 3 55 Heat Flow Errors 104 | . . . . . 2 . 4 3 . . . 1 3 3 4 5 4 4 3 5 . . . . . . 2 2 1 9 21 2 26 Energy Discharges 124 | . . . . . 6 2 8 7 1 . . . 2 5 4 1 4 5 5 3 . . . . . 4 1 7 3 7 21 2 26 Parts Rejected 19 | . . . . . 2 1 . . . . . . . 2 . . . . 1 . . . . . . 1 . . 1 . 5 1 5 Parts Fused 12 | . . . . . . . . 1 . . . 1 . 1 . . . 2 . . . . . . . . . . . . 1 3 3 Data Loss (minor) 123 | . . . . . 8 2 7 2 1 . . . 5 4 5 1 6 4 2 3 . . . . . 3 5 3 2 8 23 3 26 Data Loss (major) 46 | . . . . . 1 1 3 4 . . . . . 1 2 . 1 6 1 . . . . . . . 2 2 . 1 8 . 13 Misfires 33 | . . . . . 1 . 3 . . . . . 1 1 1 2 1 2 3 . . . . . . . . . . . 8 . 10 Alerts 29 | . . . . . 3 . 2 . . . . . . 2 1 2 . 2 . 1 . . . . . 2 . 1 1 2 6 . 4 Misdirections 11 | . . . . . . . . . . . . . . 3 . . . 1 . . . . . . . . . . . 4 2 . 1 Weapon Failures 95 | . . . . . 2 1 1 1 . . . . . 4 5 1 . 1 . . . . . . . 2 4 5 3 8 39 . 18 Overload Shots 3 | . . . . . . . . . . . . . . . . . . . . . . . . . . . . . . . 3 . . Effects 1 | . . . . . . . . . . . . . . . . . . . . . . . . . . . . . . . 1 . . Energy Bleed 1 | . . . . . . . . . . . . . . . . . . . . . . . . . . . . . . . 1 . . Overflow Damage 16375 | . . . . . 6 35 . 142 . . . . . 12 . . 6 20 20 335 . . . 335 . 106 . . 105 478 4224 4693 5858 Projectiles 8829 | . . . . . . . . . . . . . . . . . . . 20 . . . . . . 68 . . 105 447 2313 2652 3224 Explosions 6640 | . . . . . 6 . . . . . . . . . . . 6 20 . 16 . . . . . 11 . . . 31 1875 2041 2634 Melee 906 | . . . . . . 35 . 142 . . . . . 12 . . . . . 319 . . . 335 . 27 . . . . 36 . . Knockbacks 20 | . . . . . 2 . . . . . . . . . . . . . . . . . . . . 1 . . . . 1 . 16 Impact 4 | . . . . . 2 . . . . . . . . . . . . . . . . . . . . 1 . . . . 1 . . Kinetic 16 | . . . . . . . . . . . . . . . . . . . . . . . . . . . . . . . . . 16 Secondary . | . . . . . . . . . . . . . . . . . . . . . . . . . . . . . . . . . . Self-Inflicted Damage 2779 | . . . . . . . . . . . . . . . . 18 36 49 . 9 . . . . . . . . . 49 1456 197 965 Shots 60 | . . . . . . . . . . . . . . . . 1 1 1 . 1 . . . . . . . . . 1 26 3 26 Rammed 36 | . 6 3 . 1 11 1 . . . . . . . . . . . . . . 1 . . . . 2 . . . 4 7 . . Targets Rammed 45 | . 7 4 . 1 13 2 . . . . . . . . . . . . . . 1 . . . . 2 . . 1 4 7 . 3 Kicked 3 | . . . . . . . . . . . . . . . . . . . . . . . . . . . . . . . . . 3 Crushed 6 | . 1 1 . . 2 1 . . . . . . . . . . . . . . . . . . . . . . 1 . . . . Highest Temperature 508 | 45 54 9 . . 252 54 172 221 . . 13 176 143 250 212 282 154 184 205 215 143 . 78 166 . 449 141 97 386 311 271 508 498 Average Temperature 93 | 18 18 9 . . 126 13 75 100 . . 4 59 62 68 103 103 78 97 62 112 27 . 44 92 . 127 30 28 102 122 93 111 94 Received Heat Transfer 4210 | . 96 303 . . 432 363 45 36 . . 144 153 . . 36 288 84 . 62 12 26 . . . . 136 . . 662 28 618 73 613 Effects 20 | . . . . . . . . . . . . . . . . . . . . 1 . . . . . 4 . . 2 1 . 2 10 Shutdowns 6 | . . . . . . . . . . . . . . . . . . . . . . . . . . 3 . . . 1 . . 2 Energy Bleed 7 | . . . . . . . . . . . . . . . . . . . . 1 . . . . . 1 . . . . . 1 4 Interference 6 | . . . . . . . . . . . . . . . . . . . . . . . . . . . . . 2 . . . 4 Matter Decay 1 | . . . . . . . . . . . . . . . . . . . . . . . . . . . . . . . . 1 . Siege Activations 29 | . . . . . . . . . . . . . . . . . . . . . . . . . . 5 . . 6 5 2 4 7 Total Turns 2157 | . . . . . . . . . . . . . . . . . . . . . . . . . . 55 . . 128 41 25 605 1303 Longest Duration 596 | . . . . . . . . . . . . . . . . . . . . . . . . . . 31 . . 91 18 15 542 596 Martial Activations . | . . . . . . . . . . . . . . . . . . . . . . . . . . . . . . . . . . Shielding Activations 2 | . . . . . . . . . . . . . . . . . . . . . . . . . . . . . . . 1 . 1 Total Turns 96 | . . . . . . . . . . . . . . . . . . . . . . . . . . . . . . . 13 . 83 Longest Duration 83 | . . . . . . . . . . . . . . . . . . . . . . . . . . . . . . . 13 . 83 Robots Disrupted 1 | . . . . . . . . . . . . . . . . . . . . . . . . . . . . . . . 1 . . Combat Hostiles 1 | . . . . . . . . . . . . . . . . . . . . . . . . . . . . . . . 1 . . Robots Corrupted 21 | . . . . . . . . 1 . . . . . . . . . 1 . . . . . . . 1 . . 2 1 6 . 9 Combat Hostiles 19 | . . . . . . . . . . . . . . . . . . . . . . . . . . 1 . . 2 1 6 . 9 Parts Fried 37 | . . . . . . . . 1 . . . . . . . . . 3 . . . . . . . 2 . . 3 . 7 . 21 Impact Corruptions 11 | . . . . . . 1 . 7 . . . . . . . . . . . . . . . . . 2 . . . . 1 . . Robots Melted 71 | . 1 . . . . . . . . . . . . . . . . . 2 . . . 1 . . 1 . . 3 3 27 15 18 Combat Hostiles 54 | . . . . . . . . . . . . . . . . . . . 1 . . . . . . 1 . . 3 2 23 7 17 Parts Melted 182 | . 7 . . . . 1 . . . . . . . . 1 1 . . 5 . . . 1 . . 10 . . 12 8 39 45 52 Heat Transferred 113514 | 296 629 . . . . . . . . . 999 922 . 703 444 497 125 . 1621 74 148 . 298 . . 2946 37 . 4206 2293 35498 23155 38623 Parts Sabotaged 2 | . . . . . . . . . . . . . . . . . . . . . . . . . . . . . . . 1 . 1 Parts Stolen 19 | . . . . . . . . 4 . . . . 4 . . 1 2 . . . . . 6 . . . . . . . . . 2 Parts Stripped . | . . . . . . . . . . . . . . . . . . . . . . . . . . . . . . . . . . Power Chain Reactions 5 | . . . . . . . . . . . . . . . . 1 . 1 1 . . . . . . . . . . . . . 2 Alert | -11 -10 -10 -10 -9 -8 -7 -7 -7 -7 -6 -6 -6 -6 -6 -5 -5 -5 -5 -5 -4 -4 -4 -4 -4 -3 -3 -3 -3 -2 -2 -2 -1 -1 ------- Run | Yrd Mat Min Exi Min Mat Fac Low Low Zio Pro Fac Low Low Dat Pro Fac Upp Upp War Pro Fac Upp Upp Zhi Pro Res Arm Lab Res Tes Frg Acc Com Maximum Alert Level 5 | . . 1 . . 2 2 . . . . 1 . . . . 2 . . . . . . . . . 2 1 . 2 2 5 5 5 Low Security (%) 22 | 100 100 73 . 100 12 7 . . . . 56 . . . . 24 . . . . 100 . . . . 44 61 . 68 . . . . Level 1 14 | . . 26 . . 42 33 . . . . 43 . . . . 23 . . . . . . . . . 47 38 . 16 38 11 . . Level 2 13 | . . . . . 45 59 . . . . . . . . . 51 . . . . . . . . . 7 . . 14 61 12 . . Level 3 1 | . . . . . . . . . . . . . . . . . . . . . . . . . . . . . . . 10 . . Level 4 . | . . . . . . . . . . . . . . . . . . . . . . . . . . . . . . . 3 . . Level 5 16 | . . . . . . . . . . . . . . . . . . . . . . . . . . . . . . . 58 12 21 High Security 30 | . . . . . . . . . . . . . . . . . . . . . . . . . . . . . . . 2 87 78 Max Security . | . . . . . . . . . . . . . . . . . . . . . . . . . . . . . . . . . . Sterilizations 1 | . . . . . . . . . . . . . . . . . . . . . . . . . . . . . . . . 1 . Peak Influence 13850 | 10 148 298 . . 548 699 . . . . 353 . . . . 484 . . . . 155 . . . . 429 230 . 497 677 6067 8042 13850 Initial 5146 | . . 46 . . . 239 . . . . 300 . . . . 37 . . . . . . . . . . 215 . . 272 366 3628 5146 Average 4106 | 1 48 128 . . 347 405 . . . . 206 . . . . 315 . . . . 62 . . . . 189 185 . 192 488 2588 5734 11348 Influence Increases 30330 | 30 491 543 . . 1545 1026 90 60 . 70 701 345 . . 210 745 230 150 319 40 317 . . 15 . 811 176 . 971 874 6615 4514 9442 Destroy 0b10 Robot/C 17024 | . 280 220 . . 780 600 80 60 . 40 240 240 . . 180 200 200 140 300 20 120 . . . . 484 60 . 540 320 4320 2880 4720 Destroy 0b10 Robot/NC 1011 | 30 35 15 . . 90 75 . . . 10 10 . . . . . . . . 10 5 . . 15 . 26 . . 25 30 245 145 245 Destroy Leader 2842 | . 66 40 . . 206 152 10 . . . 60 . . . 30 50 30 10 . 10 40 . . . . 114 10 . 142 52 650 472 698 Allied During Kill 377 | . . 6 . . . 38 . . . 20 43 15 . . . . . . 4 . 45 . . . . 48 21 . 12 24 96 . 5 Successful Hack 57 | . 33 . . . 12 . . . . . 12 . . . . . . . . . . . . . . . . . . . . . . Select Force Hacks 90 | . 60 . . . 30 . . . . . . . . . . . . . . . . . . . . . . . . . . . . Disable Machine 1233 | . . 15 . . 45 90 . . . . 15 . . . . 225 . . . . 30 . . . . 63 45 . 30 150 225 15 285 Anti-Garrison Action 350 | . . . . . . . . . . . . . . . . 150 . . . . . . . . . . . . . . . 150 50 Destroy Structure 5331 | . 2 . . . 66 26 . . . . 6 . . . . 120 . . . . 62 . . . . 64 40 . 207 268 799 807 2864 Advance Influence 300 | . . . . . . . . . . . 300 . . . . . . . . . . . . . . . . . . . . . . Partial Spotted 45 | . . . . . . . . . . . . . . . . . . . . . . . . . . . . . . . . 15 30 Lose Combat Pursuer 702 | . 15 15 . . 30 45 . . . . 15 90 . . . . . . 15 . 15 . . . . 12 . . 15 30 30 30 345 Active Sensor Use 200 | . . . . . . . . . . . . . . . . . . . . . . . . . . . . . . . . . 200 Miscellaneous 768 | . . 232 . . 286 . . . . . . . . . . . . . . . . . . . . . . . . . 250 . . Influence Decreases 16254 | 30 372 599 63 . 1018 866 737 100 . 70 552 484 10 . 150 412 531 238 103 260 224 93 . 15 . 400 416 171 486 707 1220 2519 3408 Entered New Map 7373 | . . 73 63 . . 288 255 8 . . . 56 2 . . 23 146 19 4 220 . 35 . . . . 196 171 . 213 286 2419 2896 Time Decay 7101 | 30 372 506 . . 558 498 482 82 . 70 362 318 8 . 130 319 365 209 69 40 154 58 . 15 . 330 160 . 426 464 764 90 222 Search Patrol Dispatched 200 | . . . . . 100 . . . . . 100 . . . . . . . . . . . . . . . . . . . . . . Lost Part 690 | . . 20 . . 60 . . 10 . . 10 30 . . 20 60 20 10 10 . . . . . . 40 . . 60 30 90 10 210 Lost Ally 590 | . . . . . . 80 . . . . 80 80 . . . 10 . . 20 . 70 . . . . 30 60 . . . 80 . 80 Purge Threat 300 | . . . . . 300 . . . . . . . . . . . . . . . . . . . . . . . . . . . . Squads Dispatched 181 | . 2 . . . 5 9 . . . . 3 . . . . 5 . . . . 5 . . . . 14 1 . 7 7 55 26 42 Investigation 17 | . 2 . . . 2 2 . . . . . . . . . 1 . . . . 1 . . . . 2 . . 1 2 . . 4 Extermination 26 | . . . . . . 2 . . . . 2 . . . . 1 . . . . 1 . . . . 3 1 . 3 3 9 . 1 Reinforcement 24 | . . . . . 2 5 . . . . 1 . . . . . . . . . 3 . . . . 2 . . 2 1 5 2 1 Assault 95 | . . . . . . . . . . . . . . . . 2 . . . . . . . . . . . . . 1 32 24 36 Garrison 14 | . . . . . 1 . . . . . . . . . . 1 . . . . . . . . . 6 . . . . 6 . . Intercept 5 | . . . . . . . . . . . . . . . . . . . . . . . . . . 1 . . 1 . 3 . . Searches Triggered 2 | . . . . . 1 . . . . . 1 . . . . . . . . . . . . . . . . . . . . . . Construction Impeded 9 | . . . . . 1 2 . . . . . . . . . . . . . . 1 . . . . 1 . . . . 2 2 . Haulers Reinforced 1 | . . . . . . 1 . . . . . . . . . . . . . . . . . . . . . . . . . . . Active Scanning Responses 2 | . . . . . . . . . . . . . . . . . . . . . . . . . . . . . . . . . 2 Cargo Convoy Interrupts . | . . . . . . . . . . . . . . . . . . . . . . . . . . . . . . . . . . Stealth | -11 -10 -10 -10 -9 -8 -7 -7 -7 -7 -6 -6 -6 -6 -6 -5 -5 -5 -5 -5 -4 -4 -4 -4 -4 -3 -3 -3 -3 -2 -2 -2 -1 -1 --------- Run | Yrd Mat Min Exi Min Mat Fac Low Low Zio Pro Fac Low Low Dat Pro Fac Upp Upp War Pro Fac Upp Upp Zhi Pro Res Arm Lab Res Tes Frg Acc Com Distress Signals 35 | . 3 . . . 6 1 . . . 1 . . . . . . . . . . . . . . . 3 1 . 2 . 1 2 15 Communications Jammed . | . . . . . . . . . . . . . . . . . . . . . . . . . . . . . . . . . . Distress Signals . | . . . . . . . . . . . . . . . . . . . . . . . . . . . . . . . . . . Times Spotted 1133 | . 27 13 . . 47 42 4 6 . 3 16 25 3 4 11 13 12 7 58 3 9 . 4 . . 34 8 . 32 25 302 129 296 Peak Tracking Total 40 | . 5 3 . . 5 6 3 3 . 1 4 9 3 3 3 3 5 5 18 2 3 . 4 . . 5 7 . 6 5 40 9 15 Tactical Retreats 38 | . 1 1 . . 2 2 . . . . 1 2 . . . . . . 1 . 1 . . . . 1 . . 1 2 2 2 19 Traps | -11 -10 -10 -10 -9 -8 -7 -7 -7 -7 -6 -6 -6 -6 -6 -5 -5 -5 -5 -5 -4 -4 -4 -4 -4 -3 -3 -3 -3 -2 -2 -2 -1 -1 ------- Run | Yrd Mat Min Exi Min Mat Fac Low Low Zio Pro Fac Low Low Dat Pro Fac Upp Upp War Pro Fac Upp Upp Zhi Pro Res Arm Lab Res Tes Frg Acc Com Traps Triggered 45 | . 3 . . . . 2 . . . . . . . . . . . . . . . . . . . 1 . . . . 4 1 34 Indirectly 33 | . . . . . . . . . . . . . . . . . . . . . . . . . . . . . . . 1 . 32 Trap Hack Attempts . | . . . . . . . . . . . . . . . . . . . . . . . . . . . . . . . . . . Triggered . | . . . . . . . . . . . . . . . . . . . . . . . . . . . . . . . . . . Disarmed . | . . . . . . . . . . . . . . . . . . . . . . . . . . . . . . . . . . Reprogrammed . | . . . . . . . . . . . . . . . . . . . . . . . . . . . . . . . . . . Reused . | . . . . . . . . . . . . . . . . . . . . . . . . . . . . . . . . . . Traps Extracted . | . . . . . . . . . . . . . . . . . . . . . . . . . . . . . . . . . . Installed . | . . . . . . . . . . . . . . . . . . . . . . . . . . . . . . . . . . Triggered . | . . . . . . . . . . . . . . . . . . . . . . . . . . . . . . . . . . Machines | -11 -10 -10 -10 -9 -8 -7 -7 -7 -7 -6 -6 -6 -6 -6 -5 -5 -5 -5 -5 -4 -4 -4 -4 -4 -3 -3 -3 -3 -2 -2 -2 -1 -1 ---------- Run | Yrd Mat Min Exi Min Mat Fac Low Low Zio Pro Fac Low Low Dat Pro Fac Upp Upp War Pro Fac Upp Upp Zhi Pro Res Arm Lab Res Tes Frg Acc Com Machines Disabled 114 | . . 2 . . 3 6 . . . . 1 . . . . 16 . . 1 . 2 . . 1 . 5 3 6 2 15 23 6 22 Max in Single Turn 5 | . . 1 . . 1 1 . . . . 1 . . . . 5 . . 1 . 1 . . 1 . 1 1 1 1 1 1 1 2 Garrison Access 6 | . . . . . . . . . . . . . . . . 1 . . . . . . . . . . . . . . . 5 . Phase Generator 1 | . . . . . . . . . . . . . . . . . . . . . . . . . . . . . . . . . 1 Energy Cycler 2 | . . . . . . . . . . . . . . . . . . . . . . . . . . . . . . . . 2 . Machines Repaired . | . . . . . . . . . . . . . . . . . . . . . . . . . . . . . . . . . . Machines Dismantled . | . . . . . . . . . . . . . . . . . . . . . . . . . . . . . . . . . . Machines Sabotaged . | . . . . . . . . . . . . . . . . . . . . . . . . . . . . . . . . . . Overloaded Fab Kills . | . . . . . . . . . . . . . . . . . . . . . . . . . . . . . . . . . . Hacking | -11 -10 -10 -10 -9 -8 -7 -7 -7 -7 -6 -6 -6 -6 -6 -5 -5 -5 -5 -5 -4 -4 -4 -4 -4 -3 -3 -3 -3 -2 -2 -2 -1 -1 --------- Run | Yrd Mat Min Exi Min Mat Fac Low Low Zio Pro Fac Low Low Dat Pro Fac Upp Upp War Pro Fac Upp Upp Zhi Pro Res Arm Lab Res Tes Frg Acc Com Machines Accessed 50 | . 9 . 2 . 10 4 . 1 1 . 2 . . 3 . 1 . 1 4 . . 1 2 3 . . . 1 . 1 2 . 2 Terminals 17 | . 7 . . . 6 1 . . . . . . . . . . . . . . . . . . . . . . . . 1 . 2 Fabricators 5 | . . . . . . 3 . . . . 1 . . . . 1 . . . . . . . . . . . . . . . . . Repair Stations . | . . . . . . . . . . . . . . . . . . . . . . . . . . . . . . . . . . Recycling Units 4 | . 2 . . . 2 . . . . . . . . . . . . . . . . . . . . . . . . . . . . Scanalyzers 3 | . . . . . 1 . . . . . 1 . . . . . . . . . . . . . . . . . . 1 . . . Garrison Access 2 | . . . . . 1 . . . . . . . . . . . . . . . . . . . . . . . . . 1 . . Total Hacks 126 | . 17 . 2 . 24 7 . 1 4 . 5 . . 23 . 2 . 1 13 . . 1 4 12 . . . 1 . 1 2 . 6 Successful 91 | . 10 . 2 . 10 5 . 1 4 . 2 . . 23 . 1 . 1 13 . . 1 4 12 . . . 1 . . 1 . . Failed 35 | . 7 . . . 14 2 . . . . 3 . . . . 1 . . . . . . . . . . . . . 1 1 . 6 Catastrophic 3 | . 1 . . . 2 . . . . . . . . . . . . . . . . . . . . . . . . . . . . Database Lockouts . | . . . . . . . . . . . . . . . . . . . . . . . . . . . . . . . . . . Manual 91 | . 18 . 1 . 18 1 . . . . 2 . . . . 18 . . 1 . 10 . . . . 9 . . 8 2 1 2 . Terminals 38 | . 15 . . . 15 1 . . . . . . . . . . . . . . . . . . . . . . . . 1 . 6 Fabricators 11 | . . . . . . 6 . . . . 3 . . . . 2 . . . . . . . . . . . . . . . . . Repair Stations . | . . . . . . . . . . . . . . . . . . . . . . . . . . . . . . . . . . Recycling Units 5 | . 2 . . . 3 . . . . . . . . . . . . . . . . . . . . . . . . . . . . Scanalyzers 6 | . . . . . 3 . . . . . 2 . . . . . . . . . . . . . . . . . . 1 . . . Garrison Access 4 | . . . . . 3 . . . . . . . . . . . . . . . . . . . . . . . . . 1 . . Terminal Hacks 67 | . 1 . 2 . 2 1 . 1 4 . . . . 23 . . . 1 13 . . 1 4 12 . . . 1 . . 1 . . Record 17 | . . . 1 . . . . . . . . . . 2 . . . . 7 . . . 3 4 . . . . . . . . . Part Schematic 21 | . 1 . . . . . . . 4 . . . . 12 . . . . . . . . . 4 . . . . . . . . . Robot Schematic 6 | . . . . . . . . . . . . . . 6 . . . . . . . . . . . . . . . . . . . Prototype ID Bank 13 | . . . . . . . . . . . . . . 3 . . . . 6 . . . . 4 . . . . . . . . . Open Door 4 | . . . . . . . . 1 . . . . . . . . . 1 . . . 1 1 . . . . . . . . . . Branch Access Points 1 | . . . . . . 1 . . . . . . . . . . . . . . . . . . . . . . . . . . . Unreport Threat 2 | . . . . . 2 . . . . . . . . . . . . . . . . . . . . . . . . . . . . Proto ID Catalog 2 | . . . 1 . . . . . . . . . . . . . . . . . . . . . . . . . . . 1 . . Release Object 1 | . . . . . . . . . . . . . . . . . . . . . . . . . . . . 1 . . . . . Fabricator Hacks 5 | . . . . . . 3 . . . . 1 . . . . 1 . . . . . . . . . . . . . . . . . Load Schematic 4 | . . . . . . 2 . . . . 1 . . . . 1 . . . . . . . . . . . . . . . . . Build 1 | . . . . . . 1 . . . . . . . . . . . . . . . . . . . . . . . . . . . Repair Station Hacks . | . . . . . . . . . . . . . . . . . . . . . . . . . . . . . . . . . . Recycling Unit Hacks . | . . . . . . . . . . . . . . . . . . . . . . . . . . . . . . . . . . Scanalyzer 3 | . . . . . 2 . . . . . 1 . . . . . . . . . . . . . . . . . . . . . . Retrieve Study 3 | . . . . . 2 . . . . . 1 . . . . . . . . . . . . . . . . . . . . . . Garrison Access Hacks . | . . . . . . . . . . . . . . . . . . . . . . . . . . . . . . . . . . Unauthorized Hacks 16 | . 9 . . . 6 1 . . . . . . . . . . . . . . . . . . . . . . . . . . . Terminals 12 | . 7 . . . 5 . . . . . . . . . . . . . . . . . . . . . . . . . . . . Botnet 2 | . 2 . . . . . . . . . . . . . . . . . . . . . . . . . . . . . . . . Skim 10 | . 5 . . . 5 . . . . . . . . . . . . . . . . . . . . . . . . . . . . Fabricators 1 | . . . . . . 1 . . . . . . . . . . . . . . . . . . . . . . . . . . . Liberate 1 | . . . . . . 1 . . . . . . . . . . . . . . . . . . . . . . . . . . . Repair Stations . | . . . . . . . . . . . . . . . . . . . . . . . . . . . . . . . . . . Recycling Units 3 | . 2 . . . 1 . . . . . . . . . . . . . . . . . . . . . . . . . . . . Tunnel 3 | . 2 . . . 1 . . . . . . . . . . . . . . . . . . . . . . . . . . . . Scanalyzers . | . . . . . . . . . . . . . . . . . . . . . . . . . . . . . . . . . . Garrison Access . | . . . . . . . . . . . . . . . . . . . . . . . . . . . . . . . . . . Data Cores Recovered 1 | . . . . . 1 . . . . . . . . . . . . . . . . . . . . . . . . . . . . Used . | . . . . . . . . . . . . . . . . . . . . . . . . . . . . . . . . . . Hacking Detections 21 | . 5 . . . 7 2 . . . . 2 . . . . 1 . . . . . . . . . . . . . 1 1 . 2 Full Trace Events 5 | . . . . . 1 2 . . . . . . . . . . . . . . . . . . . . . . . . . . 2 Feedback Events 1 | . . . . . . . . . . . . . . . . . . . . . . . . . . . . . . . . . 1 Corruption 1 | . . . . . . . . . . . . . . . . . . . . . . . . . . . . . . . . . 1 Feedback Blocked . | . . . . . . . . . . . . . . . . . . . . . . . . . . . . . . . . . . Robot Schematics Acquired 9 | . . . . . . . . . 3 . . . . 6 . . . . . . . . . . . . . . . . . . . Robots Built . | . . . . . . . . . . . . . . . . . . . . . . . . . . . . . . . . . . Authchips . | . . . . . . . . . . . . . . . . . . . . . . . . . . . . . . . . . . Time . | . . . . . . . . . . . . . . . . . . . . . . . . . . . . . . . . . . Total Robot Build Rating . | . . . . . . . . . . . . . . . . . . . . . . . . . . . . . . . . . . Part Schematics Acquired 37 | . 1 . . . . . . . 17 . . . . 12 . . . . . . . . . 4 . . . . . . 3 . . Parts Built 1 | . . . . . . 1 . . . . . . . . . . . . . . . . . . . . . . . . . . . Authchips . | . . . . . . . . . . . . . . . . . . . . . . . . . . . . . . . . . . Time 51 | . . . . . . 51 . . . . . . . . . . . . . . . . . . . . . . . . . . . Total Part Build Rating 1 | . . . . . . 1 . . . . . . . . . . . . . . . . . . . . . . . . . . . Part Studies Acquired 3 | . . . . . 2 . . . . . 1 . . . . . . . . . . . . . . . . . . . . . . Parts Repaired . | . . . . . . . . . . . . . . . . . . . . . . . . . . . . . . . . . . Time . | . . . . . . . . . . . . . . . . . . . . . . . . . . . . . . . . . . Parts Recycled . | . . . . . . . . . . . . . . . . . . . . . . . . . . . . . . . . . . Recycled Matter . | . . . . . . . . . . . . . . . . . . . . . . . . . . . . . . . . . . Retrieved Matter . | . . . . . . . . . . . . . . . . . . . . . . . . . . . . . . . . . . Retrieved Components . | . . . . . . . . . . . . . . . . . . . . . . . . . . . . . . . . . . Parts Scanalyzed . | . . . . . . . . . . . . . . . . . . . . . . . . . . . . . . . . . . Part Schematics Acquired . | . . . . . . . . . . . . . . . . . . . . . . . . . . . . . . . . . . Parts Damaged . | . . . . . . . . . . . . . . . . . . . . . . . . . . . . . . . . . . Bothacking | -11 -10 -10 -10 -9 -8 -7 -7 -7 -7 -6 -6 -6 -6 -6 -5 -5 -5 -5 -5 -4 -4 -4 -4 -4 -3 -3 -3 -3 -2 -2 -2 -1 -1 ------------ Run | Yrd Mat Min Exi Min Mat Fac Low Low Zio Pro Fac Low Low Dat Pro Fac Upp Upp War Pro Fac Upp Upp Zhi Pro Res Arm Lab Res Tes Frg Acc Com Used RIF Installer . | . . . . . . . . . . . . . . . . . . . . . . . . . . . . . . . . . . Robots Hacked 1 | . . . . . . . . . . . . . . . . . . . . . . . . . . . . 1 . . . . . Non-combat . | . . . . . . . . . . . . . . . . . . . . . . . . . . . . . . . . . . Combat . | . . . . . . . . . . . . . . . . . . . . . . . . . . . . . . . . . . Robot Hacks Applied . | . . . . . . . . . . . . . . . . . . . . . . . . . . . . . . . . . . Manual 1 | . . . . . . . . . . . . . . . . . . . . . . . . . . . . 1 . . . . . Relay Couplers Released 8 | . . . . . . . . . . . . . . . . 2 . . . . . . . . . . . . . . 4 2 . Machine Destruction 4 | . . . . . . . . . . . . . . . . 2 . . . . . . . . . . . . . . . 2 . Programmers 4 | . . . . . . . . . . . . . . . . . . . . . . . . . . . . . . . 4 . . Fabnet Peak Effective % . | . . . . . . . . . . . . . . . . . . . . . . . . . . . . . . . . . . Robots Rewired 10 | . . . . . . . . . . . . 2 . . . . . . 5 . . . . . . . 3 . . . . . . Allies Hacked 3 | . . . . . . 1 . . . . . . . . . . . . 1 . . . . . . . . . . . 1 . . Hacks Repelled . | . . . . . . . . . . . . . . . . . . . . . . . . . . . . . . . . . . Allies | -11 -10 -10 -10 -9 -8 -7 -7 -7 -7 -6 -6 -6 -6 -6 -5 -5 -5 -5 -5 -4 -4 -4 -4 -4 -3 -3 -3 -3 -2 -2 -2 -1 -1 -------- Run | Yrd Mat Min Exi Min Mat Fac Low Low Zio Pro Fac Low Low Dat Pro Fac Upp Upp War Pro Fac Upp Upp Zhi Pro Res Arm Lab Res Tes Frg Acc Com Total Allies 46 | . . 3 . . . 7 . . 4 . . 4 . . . 1 . . 5 . 4 . . . . 2 3 . 2 1 5 1 4 Largest Group 5 | . . 3 3 . . 3 . . 4 4 4 3 . . . 1 . . 5 . 4 . . . . 1 3 . 1 1 5 1 4 Highest-Rated Group 315 | . . 72 72 . . 142 . . 163 163 163 82 . . . 28 . . 261 . 315 . . . . 269 168 . 127 183 210 27 168 Highest-Rated Ally 269 | . . 31 31 . . 142 . . 42 42 42 32 . . . 28 . . 68 . 96 . . . . 269 56 . 127 183 42 27 42 Zionite Dispatches 8 | . . . . . . . . . . . . . . . . 1 . . . . 2 . . . . 2 . . 2 . . 1 . Light 1 | . . . . . . . . . . . . . . . . . . . . . 1 . . . . . . . . . . . . Experimental 1 | . . . . . . . . . . . . . . . . . . . . . . . . . . 1 . . . . . . . Hero 1 | . . . . . . . . . . . . . . . . . . . . . . . . . . . . . 1 . . . . Thermal Resupply 1 | . . . . . . . . . . . . . . . . . . . . . . . . . . . . . 1 . . . . Offense Resupply 1 | . . . . . . . . . . . . . . . . . . . . . 1 . . . . . . . . . . . . Infowar Resupply 2 | . . . . . . . . . . . . . . . . 1 . . . . . . . . . 1 . . . . . . . Zionite Resupply 1 | . . . . . . . . . . . . . . . . . . . . . . . . . . . . . . . . 1 . Total Orders 4 | . . . . . . . . . . . . . . . . 1 . . . . 1 . . . . 1 . . . . . 1 . DROP 4 | . . . . . . . . . . . . . . . . 1 . . . . 1 . . . . 1 . . . . . 1 . Ally Attacks 260 | . . 1 . . . 42 . . . 9 21 45 . . . . . . 8 . 27 . . . . 19 23 . 7 10 17 . 31 Total Damage 10744 | . . 21 . . . 1266 . . . 172 630 904 . . . . . . 401 . 973 . . . . 1932 794 . 745 883 657 . 1366 Kills 54 | . . . . . . 10 . . . 4 4 6 . . . . . . 1 . 5 . . . . 10 2 . 2 4 5 . 1 Allies Corrupted 6 | . . . . . . . . . . . . . . . . . . . 4 . . . . . . 1 . . . . 1 . . Allies Melted 2 | . . . . . . . . . . . . . . . . . . . 1 . . . 1 . . . . . . . . . . X0-1V1 Amusement Gains 660 | . 6 . . . 30 5 . . . . . . . 89 . . 15 5 60 . 10 . . 25 . 20 . 93 30 5 123 57 87 Average Entertainment 50 | . 8 9 . 3 12 26 12 7 . 3 1 18 18 . 61 45 36 21 35 30 31 19 10 . 13 16 14 . 53 45 75 94 90 Good Acts 169 | . 6 4 . . 10 7 4 3 . 1 8 13 1 . 2 2 3 1 1 3 . 5 1 . 1 1 1 . 9 8 28 14 32 Bad Acts 158 | . 10 6 . . 10 3 2 3 . . 2 7 2 . . 9 . 1 5 4 3 1 1 . 5 5 1 . 3 2 24 4 45 Intel | -11 -10 -10 -10 -9 -8 -7 -7 -7 -7 -6 -6 -6 -6 -6 -5 -5 -5 -5 -5 -4 -4 -4 -4 -4 -3 -3 -3 -3 -2 -2 -2 -1 -1 ------- Run | Yrd Mat Min Exi Min Mat Fac Low Low Zio Pro Fac Low Low Dat Pro Fac Upp Upp War Pro Fac Upp Upp Zhi Pro Res Arm Lab Res Tes Frg Acc Com Active Infowar (turns) 22457 | 39 1386 32 . . 678 1025 1258 727 . . . . . . . 1 . . . . 402 595 754 284 728 847 337 510 1156 1162 4395 1564 4577 Optics 13844 | . . . . . . . . 2 . . . . . . . . . . . . 402 595 754 284 728 847 337 510 1156 1162 4395 1564 1108 Sensors 3611 | . . 1 . . . . . . . . . . . . . . . . . . . 595 754 284 728 497 329 420 3 . . . . A.S.S. 843 | . . . . . . . . . . . . . . . . . . . . . . . . . . . . . . . . . 843 Terrain 5855 | . . . . . 678 1025 1258 727 . . . . . . . . . . . . . . . . . 265 . 154 481 389 352 497 29 Seismic 1456 | 39 1386 31 . . . . . . . . . . . . . . . . . . . . . . . . . . . . . . . Cloaking 5756 | . . . . . . . . . . . . . . . . . . . . . . . . . . . 1 . 410 616 1388 425 2916 Jamming 264 | . . . . . . . . . . . . . . . . 1 . . . . . . . . . . . . . 224 39 . . Robot Analysis Total 154 | . . . . . . . . . . . . . . 154 . . . . . . . . . . . . . . . . . . . Derelict Logs Recovered 17 | . . 2 . . . . 2 1 . 1 . 1 1 . 1 . 1 2 . 2 . 1 2 . . . . . . . . . . Drone Launches . | . . . . . . . . . . . . . . . . . . . . . . . . . . . . . . . . . . Drone Recoveries . | . . . . . . . . . . . . . . . . . . . . . . . . . . . . . . . . . . Zionite Intel Received 5 | . . . . . . . . . . . . . . . . 3 . . . . 1 . . . . 1 . . . . . . . Branch Access 1 | . . . . . . . . . . . . . . . . . . . . . . . . . . 1 . . . . . . . Component Stockpiles 1 | . . . . . . . . . . . . . . . . 1 . . . . . . . . . . . . . . . . . Prototype Stockpiles 1 | . . . . . . . . . . . . . . . . 1 . . . . . . . . . . . . . . . . . Unaware Analyses 1 | . . . . . . . . . . . . . . . . 1 . . . . . . . . . . . . . . . . . Trap Installations 1 | . . . . . . . . . . . . . . . . . . . . . 1 . . . . . . . . . . . . Exploration | -11 -10 -10 -10 -9 -8 -7 -7 -7 -7 -6 -6 -6 -6 -6 -5 -5 -5 -5 -5 -4 -4 -4 -4 -4 -3 -3 -3 -3 -2 -2 -2 -1 -1 ------------- Run | Yrd Mat Min Exi Min Mat Fac Low Low Zio Pro Fac Low Low Dat Pro Fac Upp Upp War Pro Fac Upp Upp Zhi Pro Res Arm Lab Res Tes Frg Acc Com Turns Passed 44073 | 193 2070 1378 818 64 1947 1322 1258 1136 2160 1117 832 719 521 669 532 761 1153 1099 1885 950 486 595 754 284 728 847 337 510 1156 1162 4395 1564 8671 Spaces Moved 18906 | 101 1162 772 510 38 943 561 525 454 906 470 425 339 296 233 261 236 423 348 770 424 224 344 423 153 444 321 150 245 356 496 1381 432 3740 Core 15 | 15 . . . . . . . . . . . . . . . . . . . . . . . . . . . . . . . . . Treads 14297 | 86 1162 772 510 38 943 561 525 454 906 470 425 339 296 233 261 197 . 307 184 353 224 344 423 153 444 321 150 245 356 496 766 432 921 Legs 4543 | . . . . . . . . . . . . . . . . 39 423 41 586 71 . . . . . . . . . . 564 . 2819 Wheels 51 | . . . . . . . . . . . . . . . . . . . . . . . . . . . . . . . 51 . . Hover . | . . . . . . . . . . . . . . . . . . . . . . . . . . . . . . . . . . Flight . | . . . . . . . . . . . . . . . . . . . . . . . . . . . . . . . . . . Fastest Speed 50 | 50 160 160 160 160 160 148 237 232 237 237 165 166 166 166 166 226 190 240 176 162 162 162 162 162 162 152 152 157 157 161 110 160 110 Average Speed 184 | 143 160 160 160 160 160 188 237 236 237 237 165 167 166 166 181 237 259 281 216 193 162 162 162 162 162 173 154 157 181 165 211 160 161 Slowest Speed 490 | 160 240 160 160 160 162 250 237 237 237 237 166 240 166 166 240 330 400 480 490 243 162 162 162 162 162 242 236 240 246 243 410 160 215 Overloaded Moves . | . . . . . . . . . . . . . . . . . . . . . . . . . . . . . . . . . . Propulsion Burnouts . | . . . . . . . . . . . . . . . . . . . . . . . . . . . . . . . . . . Robots Hopped . | . . . . . . . . . . . . . . . . . . . . . . . . . . . . . . . . . . Potential Cave-ins 61 | . . . . . 3 . . . . . . . . . . . . . . . 2 . . . . . . . 2 2 41 2 9 Cave-ins Triggered 1 | . . . . . . . . . . . . . . . . . . . . 1 . . . . . . . . . . . . . Teleports 1 | . . . . . . . . . . . . . . . . . . . . . . . . . . . 1 . . . . . . Exploration Rate (%) 54 | 5 97 99 88 14 78 20 85 72 89 66 6 53 47 82 51 11 82 56 79 61 8 61 73 62 65 21 17 100 13 58 33 17 76 Regions Visited 33 Branch Regions 24 Pre-discovered Areas 46 | . 3 . 1 . 2 . 1 . 2 1 . . . 29 1 . . 1 . . . . 2 3 . . . . . . . . . Known Exits Taken 19 | . . 1 . . . 1 . 1 1 1 . 1 . . 1 1 . . . 1 1 1 1 1 1 1 1 1 . . 1 1 . Unknown Exits Taken 14 | 1 1 . 1 1 1 . 1 . . . 1 . 1 1 . . 1 1 1 . . . . . . . . . 1 1 . . . Scrap Searched 20 | . . 1 . . . . 2 2 . 1 . . 1 . 2 . 2 2 . 1 . 4 . . 2 . . . . . . . . Spaces Dug 503 | . 1 . . . . 5 . 4 . . . . . 1 . 10 . . . 11 20 5 . . . 15 16 . 42 26 63 28 256 Terrain Destroyed 2566 | . 1 . . . 69 23 27 17 . . . . . 11 18 69 78 30 20 11 35 7 2 3 . 24 22 . 82 97 383 352 1185 Melee 24 | . 1 . . . . 5 . 4 . . . . . 1 . 2 . . . 11 . . . . . . . . . . . . . Projectile 887 | . . . . . 34 18 1 . . . . . . 10 18 30 2 1 5 . 35 7 2 3 . 24 22 . 82 60 126 61 346 AOE 1655 | . . . . . 35 . 26 13 . . . . . . . 37 76 29 15 . . . . . . . . . . 37 257 291 839 Terrain Rammed . | . . . . . . . . . . . . . . . . . . . . . . . . . . . . . . . . . . Walls Destroyed . | . . . . . . . . . . . . . . . . . . . . . . . . . . . . . . . . . . Machines Disabled . | . . . . . . . . . . . . . . . . . . . . . . . . . . . . . . . . . . Actions | -11 -10 -10 -10 -9 -8 -7 -7 -7 -7 -6 -6 -6 -6 -6 -5 -5 -5 -5 -5 -4 -4 -4 -4 -4 -3 -3 -3 -3 -2 -2 -2 -1 -1 --------- Run | Yrd Mat Min Exi Min Mat Fac Low Low Zio Pro Fac Low Low Dat Pro Fac Upp Upp War Pro Fac Upp Upp Zhi Pro Res Arm Lab Res Tes Frg Acc Com Total 25327 | 129 1302 854 514 41 1220 742 533 490 917 472 505 428 318 399 283 340 459 421 928 499 317 375 488 177 454 508 238 345 660 718 2328 1160 5765 Wait 2063 | . 69 9 . 3 67 29 . 4 . . 27 12 2 68 . 8 4 5 51 6 23 11 42 4 . 39 1 11 68 66 105 479 850 Move 18874 | 100 1161 771 509 37 942 560 524 453 905 469 424 338 295 232 260 235 422 347 769 423 224 343 422 152 443 320 149 244 355 495 1381 431 3739 Hop . | . . . . . . . . . . . . . . . . . . . . . . . . . . . . . . . . . . Pick Up 438 | 12 11 8 2 . 44 24 . 7 3 2 8 9 6 9 2 13 7 10 11 7 11 2 5 7 4 10 5 13 25 13 46 12 90 Fast Attach 174 | . 7 2 . . 2 6 . . 1 . . 5 . 7 . 5 1 6 12 6 4 3 1 . 1 11 5 4 6 7 27 3 42 Attach 245 | 7 1 3 . . 21 12 2 3 2 . 4 3 2 4 3 10 5 2 4 . 3 . 4 5 2 4 1 5 14 9 29 9 72 Detach 63 | . . . . . . 1 . 1 . . . . . 2 . 3 1 . 3 1 1 . . . . 1 . . 1 4 13 1 30 Swap 334 | . 6 11 . . 20 22 1 5 3 . 7 8 1 10 . 9 8 15 4 9 4 3 3 1 . 20 6 6 16 21 36 16 63 Drop 453 | . 5 11 3 . 32 29 1 2 2 . 6 8 6 9 1 9 2 10 20 13 14 6 7 1 4 18 12 16 24 18 62 7 95 Fire 2469 | 10 34 35 . . 79 50 5 8 . 1 28 34 6 33 17 46 6 26 32 4 33 7 4 1 . 83 30 46 150 81 619 198 763 Melee 83 | . 1 . . . . 7 . 7 1 . 1 . . 25 . 2 3 . . 30 . . . 6 . . . . . . . . . Ram . | . . . . . . . . . . . . . . . . . . . . . . . . . . . . . . . . . . Kick 3 | . . . . . . . . . . . . . . . . . . . . . . . . . . . . . . . . . 3 Crush 40 | . 7 4 . 1 13 2 . . . . . . . . . . . . . . . . . . . 2 . . 1 4 6 . . Escape Stasis 26 | . . . . . . . . . . . . . . . . . . . . . . . . . . . . . . . 4 4 18 Rewire 62 | . . . . . . . . . . . . 11 . . . . . . 22 . . . . . . . 29 . . . . . . Trap . | . . . . . . . . . . . . . . . . . . . . . . . . . . . . . . . . . . Miscellaneous . | . . . . . . . . . . . . . . . . . . . . . . . . . . . . . . . . . . Route ------- -11/Scrapyard -10/Materials (discovered 6 exits: *Mat x3 / [*Min x2] / *Sub) -10/Mines (discovered 4 exits: *Mat x2 / *Exi / *Sub) -10/Exiles -9/Mines -8/Materials (discovered 4 exits: *Fac x3 / *Sto) -7/Factory (discovered 6 exits: *Fac x4 / *Low x2) -7/Lower Caves -7/Lower Caves (discovered 2 exits: *Fac / *Zio) -7/Zion (discovered 2 exits: Dee / *Pro) -6/Proximity Caves -6/Factory (discovered 2 exits: *Fac / [*Low]) -6/Lower Caves -6/Lower Caves -6/Data Miner -5/Proximity Caves -5/Factory (discovered 2 exits: Fac / *Upp) -5/Upper Caves -5/Upper Caves -5/Warlord -4/Proximity Caves -4/Factory (discovered 2 exits: *Upp / Ext) -4/Upper Caves -4/Upper Caves (discovered 2 exits: *Res / *Zhi) -4/Zhirov -3/Proximity Caves -3/Research (discovered 5 exits: Res x2 / *Arm / Qua x2) -3/Armory (discovered 2 exits: Res / *Lab) -3/Lab -2/Research (discovered 3 exits: *Acc / *Tes x2) -2/Testing (discovered 3 exits: Acc / [*Sec] / *Frg) -2/Protoforge -1/Access -1/Command (discovered 2 exits: *Sur / Ac0) 0b11 Command History --------- Turn | Location | Event 2 | -11/Scrapyard | Met Revision 17 7 | -11/Scrapyard | Discovered new exit (range 16) 194 | -11/Scrapyard | Entered Materials 311 | -10/Materials | Build established: Mutant 351 | -10/Materials | Discovered new exit (range 16) 784 | -10/Materials | Discovered new exit (range 4) 916 | -10/Materials | Discovered new exit (range 8) 1025 | -10/Materials | Identified exit to Materials 1057 | -10/Materials | Learned location of 1 exit from Storage 1080 | -10/Materials | Learned location of Mines (-10) 1156 | -10/Materials | Loaded intel: 8 terminal locations 1166 | -10/Materials | Discovered new exit (range 15) 1458 | -10/Materials | Discovered new exit (range 10) 1497 | -10/Materials | Prayed at D.C.S.S. Altar Unit 1819 | -10/Materials | Weapon slot count temporarily expanded by X0-1V1 (+1) 1828 | -10/Materials | X0-1V1 sent you into danger 1842 | -10/Materials | X0-1V1 foreshadows a heat wave 1843 | -10/Materials | X0-1V1 vaporized surrounding terrain (radius 21) 1853 | -10/Materials | Core integrity restored by X0-1V1 (+60) 1861 | -10/Materials | Heat dissipation permanently improved by X0-1V1 (+25; -125 max core) 1866 | -10/Materials | X0-1V1 caused items to flee you 1910 | -10/Materials | X0-1V1 sent you into danger 2034 | -10/Materials | Ambient heat levels rising (+10) 2127 | -10/Materials | Build established: Gunner 2168 | -10/Materials | Items stopped fleeing you 2231 | -10/Materials | X0-1V1 vaporized surrounding terrain (radius 21) 2264 | -10/Materials | Entered Mines 2288 | -10/Mines | Weapon slot count reverted to normal (-1) 2298 | -10/Mines | Found a hidden stash of uninstalled traps 2307 | -10/Mines | Identified exit to Subcaves 2525 | -10/Mines | X0-1V1 added 0b10 threat records associated with you (major) 2619 | -10/Mines | X0-1V1 vaporized surrounding terrain (radius 21) 2678 | -10/Mines | Build established: Scavenger-Mutant 2746 | -10/Mines | Discovered exit to Materials (range 14) 2832 | -10/Mines | X0-1V1 upgraded hostiles (x1) 3259 | -10/Mines | Learned 2 Materials zone layouts 3364 | -10/Mines | Found a damaged Exp. Sensor Array with a note attached 3368 | -10/Mines | Found Prototype Device 3368 | -10/Mines | Identified Exp. Sensor Array 3461 | -10/Mines | Received a Mining Laser from a helpful Derelict 3468 | -10/Mines | Discovered exit to Materials (range 5) 3528 | -10/Mines | Identified exit to Exiles 3528 | -10/Mines | X0-1V1 revealed exit location to -10/Exiles 3631 | -10/Mines | Deemed a non-threat by the Exiles lab entrance 3642 | -10/Mines | Entered Exiles 3642 | -10/Exiles | Accompanied by 3 allies 3672 | -10/Exiles | Led the pair of lost Derelicts to a safe place 3681 | -10/Exiles | Met 8R-AWN 3705 | -10/Exiles | Met EX-HEX 3758 | -10/Exiles | Met EX-BIN 3809 | -10/Exiles | Met EX-DEC 3815 | -10/Exiles | Learned location of Zion (-7) 3868 | -10/Exiles | Aligned with FarCom system 3870 | -10/Exiles | Given EX-Vault access code 3908 | -10/Exiles | Opened EX-Vault 3950 | -10/Exiles | Warned to stay clear of 0b10 Research branches 3984 | -10/Exiles | Found 0b10 Alert Chip 3992 | -10/Exiles | Found AWS/Gauss 4122 | -10/Exiles | Visited The Gauntlet 4444 | -10/Exiles | Discovered new exit (range 12) 4460 | -10/Exiles | Stole two prototypes: 0b10 Alert Chip, AWS/Gauss 4460 | -10/Exiles | Entered Mines 4483 | -9/Mines | Met a Derelict bent on vengeance 4508 | -9/Mines | Discovered new exit (range 7) 4524 | -9/Mines | Entered Materials 4524 | -8/Materials | Evolved 4 slots: Propulsion x2, Utility x2 4525 | -8/Materials | Identified exit to Storage 4701 | -8/Materials | X0-1V1 added 0b10 threat records associated with you (major) 4924 | -8/Materials | Search patrols dispatched 4993 | -8/Materials | Discovered new exit (range 15) 5164 | -8/Materials | System corruption reached 10% 5302 | -8/Materials | X0-1V1 sent you into danger 5590 | -8/Materials | Garrison activated, responded to threat 5667 | -8/Materials | Discovered new exit (range 16) 5782 | -8/Materials | X0-1V1 vaporized surrounding terrain (radius 17) 5786 | -8/Materials | Sight range permanently improved by X0-1V1 (+1; -150 max core) 6000 | -8/Materials | Build established: Scavenger-Skirmisher 6023 | -8/Materials | Discovered new exit (range 16) 6099 | -8/Materials | Learned Factory terminal intel 6131 | -8/Materials | Learned Factory emergency access door positions 6165 | -8/Materials | Learned location of Lower Caves (-6) 6166 | -8/Materials | Learned location of 1 exit from Storage 6168 | -8/Materials | Learned Factory emergency access door positions 6170 | -8/Materials | Learned location of 1 exit from Recycling 6404 | -8/Materials | X0-1V1 sent hostile H-61 Shepherd (x1) 6471 | -8/Materials | Entered Factory 6471 | -7/Factory | Evolved 2 slots: Utility x1, Weapon x1 6472 | -7/Factory | Identified exit to Factory 6473 | -7/Factory | FarCom data flow suspended 6474 | -7/Factory | Loaded intel: 26 terminal locations 6590 | -7/Factory | Utility slot count permanently improved by X0-1V1 (+1) 6646 | -7/Factory | Weapon slot count temporarily expanded by X0-1V1 (+4) 6676 | -7/Factory | X0-1V1 sent allied H-71 Marshal (x1) 6792 | -7/Factory | Allied Derelicts emerged from ambush trap array 6939 | -7/Factory | Build established: Scavenger-Executioner 6955 | -7/Factory | Identified exit to Lower Caves 7194 | -7/Factory | Weapon slot count reverted to normal (-4) 7243 | -7/Factory | Fabricated Huge Storage Unit? 7588 | -7/Factory | X0-1V1 sent you to a vault 7694 | -7/Factory | X0-1V1 revealed exit location to -6/Factory 7699 | -7/Factory | Found Prototype Launcher 7699 | -7/Factory | Identified Rocket Array 7793 | -7/Factory | Entered Lower Caves 7857 | -7/Lower Caves | Learned Factory garrison access intel 7862 | -7/Lower Caves | Build established: Scavenger-Skirmisher 7867 | -7/Lower Caves | X0-1V1 activates XOMVISION 8215 | -7/Lower Caves | AWS/Gauss suddenly broke down 8317 | -7/Lower Caves | System corruption reached 10% 8786 | -7/Lower Caves | Encountered a Warlord checkpoint 8965 | -7/Lower Caves | Discovered new exit (range 15) 9051 | -7/Lower Caves | Entered another Lower Caves area 9052 | -7/Lower Caves | Adv. Beam Rifle stolen by Master Thief 9053 | -7/Lower Caves | Encountered a Master Thief 9053 | -7/Lower Caves | Encountered a Master Thief 9054 | -7/Lower Caves | Adv. Treads stolen by Master Thief 9056 | -7/Lower Caves | Encountered a Master Thief 9059 | -7/Lower Caves | Arm. Treads stolen by Master Thief 9110 | -7/Lower Caves | Discovered exit to Factory (range 13) 9210 | -7/Lower Caves | X0-1V1 activates XOMVISION 9572 | -7/Lower Caves | Identified exit to Zion 9604 | -7/Lower Caves | Entered a destroyed Warlord outpost 9618 | -7/Lower Caves | Build established: Scavenger-Mutant 9776 | -7/Lower Caves | X0-1V1 sent hostile G-47 Trooper (x3) 10088 | -7/Lower Caves | Build established: Tank 10187 | -7/Lower Caves | Entered Zion 10215 | -7/Zion | Found CR-A16's Pointy Stick 10287 | -7/Zion | System corruption cleaned by Quarantine Array 10399 | -7/Zion | Build established: Mutant 10403 | -7/Zion | Discovered new exit (range 15) 10757 | -7/Zion | Received a hallucinogenic algorithm 10826 | -7/Zion | Learned location of Warlord (-5) 10922 | -7/Zion | Identified exit to Deep Caves 10922 | -7/Zion | Identified exit to Proximity Caves 11160 | -7/Zion | Build established: Scavenger-Tank 11271 | -7/Zion | Given A8's code to call for help 11904 | -7/Zion | Met Imprinter 11944 | -7/Zion | Imprinted 11946 | -7/Zion | Declared Zion's savior 12347 | -7/Zion | Entered Proximity Caves 12347 | -6/Proximity Caves | Accompanied by 4 allies 12574 | -6/Proximity Caves | Spotter reported a threat 12739 | -6/Proximity Caves | Spotter reported a threat 13424 | -6/Proximity Caves | Discovered exit to Factory (range 8) 13464 | -6/Proximity Caves | Entered Factory 13464 | -6/Factory | Accompanied by 4 allies 13464 | -6/Factory | Evolved 2 slots: Propulsion x2 13466 | -6/Factory | Loaded intel: 4 garrison access locations 13528 | -6/Factory | Discovered new exit (range 14) 13670 | -6/Factory | Identified exit to Factory 13714 | -6/Factory | Discovered new exit (range 11) 13715 | -6/Factory | X0-1V1 caused items to flee you 13814 | -6/Factory | Search patrols dispatched 13951 | -6/Factory | Items stopped fleeing you 14035 | -6/Factory | Lost 4 allies 14296 | -6/Factory | Entered Lower Caves 14306 | -6/Lower Caves | X0-1V1 sent you into danger 14308 | -6/Lower Caves | Attacked by a delusional Derelict stockpiling parts 14324 | -6/Lower Caves | X0-1V1 sent hostile S-27 Virus (x3) 14336 | -6/Lower Caves | X0-1V1 sent allied H-55 Commando (x2) 14371 | -6/Lower Caves | X0-1V1 activates XOMVISION 14381 | -6/Lower Caves | Identified exit to Lower Caves 14381 | -6/Lower Caves | X0-1V1 revealed exit location to -6/Lower Caves 14414 | -6/Lower Caves | X0-1V1 caused items to flee you 14497 | -6/Lower Caves | X0-1V1 sent you into danger 14498 | -6/Lower Caves | Attracted the attention of an 0b10 outpost 14547 | -6/Lower Caves | Encountered a Warlord checkpoint 14686 | -6/Lower Caves | Items stopped fleeing you 14742 | -6/Lower Caves | Learned Factory stockpile data 14770 | -6/Lower Caves | Attacked by a faux Warlord 14819 | -6/Lower Caves | Lost 3 allies 14831 | -6/Lower Caves | Lost 3 parts (1n2w) 15015 | -6/Lower Caves | Entered another Lower Caves area 15030 | -6/Lower Caves | System corruption reached 10% 15055 | -6/Lower Caves | Encountered a Warlord checkpoint 15138 | -6/Lower Caves | Learned Factory trap positions 15423 | -6/Lower Caves | Encountered a Master Thief 15423 | -6/Lower Caves | Encountered a Master Thief 15424 | -6/Lower Caves | Encountered a Master Thief 15424 | -6/Lower Caves | Corrupted Hvy. Laser stolen by Master Thief 15425 | -6/Lower Caves | Adv. Treads stolen by Master Thief 15429 | -6/Lower Caves | Fission Core stolen by Master Thief 15472 | -6/Lower Caves | Discovered new exit (range 8) 15532 | -6/Lower Caves | System corruption reached 30% 15536 | -6/Lower Caves | Entered Data Miner 15539 | -6/Data Miner | Discovered new exit (range 7) 15562 | -6/Data Miner | Met Data Miner 15604 | -6/Data Miner | Learned location of Section 7 (-2) 15604 | -6/Data Miner | Acquired the access code to Warlord's prototype stash 15634 | -6/Data Miner | Received God Mode back door access code from Data Miner 15650 | -6/Data Miner | Interfaced with the Data Conduit 16017 | -6/Data Miner | Found Exp. Thermal Shield 16033 | -6/Data Miner | Lost 3 parts (2n1u) 16205 | -6/Data Miner | Entered Proximity Caves 16268 | -5/Proximity Caves | Build established: Scavenger-Gunner 16636 | -5/Proximity Caves | Attracted the attention of an 0b10 checkpoint 16641 | -5/Proximity Caves | Core integrity fell below 50% 16699 | -5/Proximity Caves | Discovered exit to Factory (range 8) 16737 | -5/Proximity Caves | Entered Factory 16737 | -5/Factory | Evolved 2 slots: Power x1, Utility x1 16738 | -5/Factory | Loaded intel: 78 trap records 16740 | -5/Factory | Loaded intel: 273 machine locations 16858 | -5/Factory | Garrison activated, responded to threat 16877 | -5/Factory | Build established: Scavenger-Tank 16877 | -5/Factory | X0-1V1 redirected Transport squads to designated parking area 16927 | -5/Factory | Lost 4 parts (3n1w) 16936 | -5/Factory | System corruption reached 10% 16996 | -5/Factory | Hvy. Linear Accelerator reconfigured into Item Mimic 17096 | -5/Factory | Retrieved Zion intel report: Unaware Analyses 17097 | -5/Factory | Zion Infowar Resupply teleported in 17150 | -5/Factory | Retrieved Zion intel report: Component Stockpiles 17198 | -5/Factory | X0-1V1 vaporized surrounding terrain (radius 16) 17333 | -5/Factory | Retrieved Zion intel report: Prototype Stockpiles 17374 | -5/Factory | Discovered new exit (range 6) 17485 | -5/Factory | Identified exit to Factory 17485 | -5/Factory | X0-1V1 revealed exit location to -4/Factory 17495 | -5/Factory | Identified exit to Upper Caves 17498 | -5/Factory | Entered Upper Caves 17499 | -5/Upper Caves | Exp. Sensor Array stolen by Master Thief 17499 | -5/Upper Caves | Exp. Thermal Shield stolen by Master Thief 17500 | -5/Upper Caves | Encountered a Master Thief 17500 | -5/Upper Caves | Encountered a Master Thief 17574 | -5/Upper Caves | Build established: Scavenger-Gunner 17856 | -5/Upper Caves | Spotted B-75 Beast 17889 | -5/Upper Caves | Revealed the true nature of CR-A16's Pointy Stick 17892 | -5/Upper Caves | Destroyed B-75 Beast 18249 | -5/Upper Caves | Learned location of 1 exit from Proximity Caves 18573 | -5/Upper Caves | Discovered new exit (range 11) 18651 | -5/Upper Caves | Entered another Upper Caves area 18821 | -5/Upper Caves | Core integrity restored by X0-1V1 (+123) 19184 | -5/Upper Caves | Lost 4 parts (4n) 19543 | -5/Upper Caves | Encountered a Warlord checkpoint 19610 | -5/Upper Caves | X0-1V1 sent hostile H-66 Slayer (x2) 19634 | -5/Upper Caves | Build established: Scavenger-Tank 19688 | -5/Upper Caves | Discovered new exit (range 17) 19750 | -5/Upper Caves | Entered Warlord 19859 | -5/Warlord | System corruption cleaned by Quarantine Array 20057 | -5/Warlord | Build established: Scavenger-Mutant 20098 | -5/Warlord | Learned Armory trap positions 20098 | -5/Warlord | Learned Quarantine trap positions 20101 | -5/Warlord | Learned 4 Armory zone layouts 20101 | -5/Warlord | Learned 4 Armory zone layouts 20101 | -5/Warlord | Learned 4 Quarantine zone layouts 20105 | -5/Warlord | Learned Factory repair station intel 20379 | -5/Warlord | Opened Warlord's prototype stash 20423 | -5/Warlord | Found Vortex Chain Reactor 20437 | -5/Warlord | Found Exp. Core Analyzer 20503 | -5/Warlord | Found Prototype Device 20503 | -5/Warlord | Identified Minesniffer Drone Bay 20526 | -5/Warlord | Build established: Scavenger-Tank 21050 | -5/Warlord | Warlord's base attacked by MAIN.C 21111 | -5/Warlord | Rebuked by Warlord 21214 | -5/Warlord | P-80 Master assimilated allied Beamer 6a 21226 | -5/Warlord | Spotted B-86 Titan 21236 | -5/Warlord | Spotted B-75 Beast 21248 | -5/Warlord | Lost 4 allies 21311 | -5/Warlord | X0-1V1 caused items to flee you 21400 | -5/Warlord | Warlord forces counterattacked 21473 | -5/Warlord | Spotted Executioner 21478 | -5/Warlord | Spotted Striker 21492 | -5/Warlord | Spotted Executioner 21492 | -5/Warlord | Spotted Striker 21507 | -5/Warlord | Destroyed Striker 21509 | -5/Warlord | Destroyed FD-O8Q(g) 21519 | -5/Warlord | Items stopped fleeing you 21534 | -5/Warlord | Destroyed 7 combat bots 21542 | -5/Warlord | Lost 9 allies 21544 | -5/Warlord | Found Adv. Kinecellerator 21571 | -5/Warlord | Spotted Executioner 21584 | -5/Warlord | Spotted B-86 Titan 21608 | -5/Warlord | Spotted Executioner 21617 | -5/Warlord | Discovered new exit (range 12) 21635 | -5/Warlord | Entered Proximity Caves 21658 | -4/Proximity Caves | X0-1V1 activates XOMVISION 21662 | -4/Proximity Caves | Lost 14 allies 21745 | -4/Proximity Caves | Spotted B-86 Titan 21778 | -4/Proximity Caves | Destroyed B-86 Titan 22189 | -4/Proximity Caves | Crushed by falling debris 22432 | -4/Proximity Caves | Learned location of 1 exit from Research 22494 | -4/Proximity Caves | Learned location of 1 exit from Research 22585 | -4/Proximity Caves | Entered Factory 22585 | -4/Factory | Evolved 2 slots: Utility x1, Weapon x1 22586 | -4/Factory | Identified exit to Upper Caves 22586 | -4/Factory | Identified exit to Extension 22587 | -4/Factory | Loaded intel: 284 machine locations 22588 | -4/Factory | Loaded intel: 6 repair station locations 22651 | -4/Factory | X0-1V1 enhanced Transport squad support 22669 | -4/Factory | Retrieved Zion intel report: Trap Installations 22670 | -4/Factory | Zion Offense Resupply teleported in 22756 | -4/Factory | Zion Light squad teleported in 22961 | -4/Factory | Lost 3 allies 23071 | -4/Factory | Entered Upper Caves 23318 | -4/Upper Caves | Learned Research stockpile data 23512 | -4/Upper Caves | Identified exit to Upper Caves 23512 | -4/Upper Caves | X0-1V1 revealed exit location to -4/Upper Caves 23638 | -4/Upper Caves | X0-1V1 activates XOMVISION 23666 | -4/Upper Caves | Entered another Upper Caves area 23667 | -4/Upper Caves | Encountered a Warlord checkpoint 23692 | -4/Upper Caves | Discovered new exit (range 15) 23901 | -4/Upper Caves | Entered an active Warlord outpost 23922 | -4/Upper Caves | Learned Extension emergency access door positions 23922 | -4/Upper Caves | Learned Armory stockpile data 23937 | -4/Upper Caves | Destroyed 4E-2C2(g) 24215 | -4/Upper Caves | Encountered a Master Thief 24215 | -4/Upper Caves | Encountered a Master Thief 24217 | -4/Upper Caves | Encountered a Master Thief 24217 | -4/Upper Caves | Encountered a Master Thief 24218 | -4/Upper Caves | Vortex Chain Reactor stolen by Master Thief 24219 | -4/Upper Caves | Helical Railgun stolen by Master Thief 24220 | -4/Upper Caves | Quantum Rifle stolen by Master Thief 24221 | -4/Upper Caves | Adv. Kinecellerator stolen by Master Thief 24240 | -4/Upper Caves | Discovered new exit (range 15) 24263 | -4/Upper Caves | Identified exit to Zhirov 24420 | -4/Upper Caves | Entered Zhirov 24420 | -4/Zhirov | Discovered new exit (range 3) 24450 | -4/Zhirov | Met Zhirov 24493 | -4/Zhirov | Zhirov requested help retrieving the SGEMP Prototype 24511 | -4/Zhirov | Build established: Scavenger-Skirmisher 24520 | -4/Zhirov | Found Alien Artifact 24521 | -4/Zhirov | Identified Integrated Reactor 24521 | -4/Zhirov | Installed Integrated Reactor, increased core energy generation (+10) 24543 | -4/Zhirov | Found Alien Artifact 24695 | -4/Zhirov | Identified exit to Proximity Caves 24697 | -4/Zhirov | Cloak Generator disabled 24697 | -4/Zhirov | Attacked by Zhirov 24704 | -4/Zhirov | Entered Proximity Caves 24946 | -3/Proximity Caves | Build established: Scavenger-Tank 25194 | -3/Proximity Caves | Discovered new exit (range 12) 25265 | -3/Proximity Caves | X0-1V1 caused items to flee you 25398 | -3/Proximity Caves | Identified exit to Research 25432 | -3/Proximity Caves | Entered Research 25432 | -3/Research | Evolved 2 slots: Power x1, Utility x1 25433 | -3/Research | Identified exit to Quarantine 25434 | -3/Research | Identified exit to Research 25436 | -3/Research | Loaded intel: 116 machine locations 25569 | -3/Research | Retrieved Zion intel report: Branch Access 25569 | -3/Research | Identified exit to Armory 25570 | -3/Research | Zion Infowar Resupply teleported in 25575 | -3/Research | Found Exp. Signal Interpreter 25581 | -3/Research | Found Prototype Processor 25581 | -3/Research | Identified Exp. Terrain Scan Processor 25587 | -3/Research | X0-1V1 vaporized surrounding terrain (radius 24) 25741 | -3/Research | Spotted B-86 Titan 25750 | -3/Research | Zion Experimental squad teleported in 25753 | -3/Research | Allies destroyed B-86 Titan 25856 | -3/Research | Garrison activated, responded to threat 25869 | -3/Research | Found Prototype Protection 25869 | -3/Research | Identified Zio. Shade Armor 25874 | -3/Research | Found Zio. Shade Armor 25937 | -3/Research | Found Zio. Shade Armor 25942 | -3/Research | Found Prototype Protection 25942 | -3/Research | Identified Zio. Weapon Casing 25947 | -3/Research | Lost 4 parts (1p2u1w) 26075 | -3/Research | Garrison activated, responded to threat 26159 | -3/Research | System corruption reached 10% 26178 | -3/Research | Spotted B-86 Titan 26193 | -3/Research | System corruption reached 30% 26247 | -3/Research | Intercept squad dispatched 26265 | -3/Research | Spotted Tracker 26268 | -3/Research | Spotted Tracker 26279 | -3/Research | Entered Armory 26280 | -3/Armory | Identified exit to Lab 26281 | -3/Armory | Loaded intel: 57 trap records 26283 | -3/Armory | Loaded intel: 74 machine locations 26586 | -3/Armory | Found Unknown Launcher 26586 | -3/Armory | Identified Gamma Bomb Array 26592 | -3/Armory | X0-1V1 tapped a No Entrance sign 26604 | -3/Armory | Identified Transdimensional Reconstructor 26604 | -3/Armory | Warped through subspace to slip node 26616 | -3/Armory | Entered Lab 26616 | -3/Lab | Discovered exit to Research (range 9) 26634 | -3/Lab | Hidden lab's door opened automatically 26634 | -3/Lab | Sensor layout match revealed 26635 | -3/Lab | Gained access to the hidden lab's interior 26719 | -3/Lab | Found Alien Artifact 26720 | -3/Lab | Identified Integrated Dissipator 26720 | -3/Lab | Installed Integrated Dissipator, increased core heat dissipation (+20) 26741 | -3/Lab | Found Alien Artifact 26771 | -3/Lab | Found Prototype Device 26771 | -3/Lab | Identified AEGIS Remote Shield 26776 | -3/Lab | Found Prototype Hackware 26784 | -3/Lab | Found Prototype Energy Cannon 26789 | -3/Lab | Found Prototype Energy Cannon 26888 | -3/Lab | Found Transdimensional Reconstructor 26955 | -3/Lab | Found Prototype Special Weapon 26958 | -3/Lab | Identified Gui. Remote Datajack 26965 | -3/Lab | Detected by scanners 26980 | -3/Lab | Hacked A5 with code downloaded from Data Conduit 26983 | -3/Lab | Confronted by A5 26983 | -3/Lab | Destroyed A5 27025 | -3/Lab | Identified Warp Cannon 27034 | -3/Lab | Decrypted terminal 27038 | -3/Lab | Found Alien Artifact 27038 | -3/Lab | Identified LC Capacitor 27126 | -3/Lab | Entered Research 27126 | -2/Research | Evolved 2 slots: Utility x2 27127 | -2/Research | Loaded intel: 124 machine locations 27255 | -2/Research | Zion Thermal Resupply teleported in 27405 | -2/Research | Destroyed 8 combat bots 27408 | -2/Research | Lost 3 parts (1p1n1w) 27461 | -2/Research | X0-1V1 enhanced Transport squad support 27727 | -2/Research | Build established: Messiah-Tank 27730 | -2/Research | Discovered new exit (range 18) 27766 | -2/Research | Discovered new exit (range 16) 27895 | -2/Research | Identified exit to Access 27935 | -2/Research | X0-1V1 whisked you away to safety 28031 | -2/Research | Found Quantum Capacitor 28043 | -2/Research | System corruption reached 10% 28065 | -2/Research | Zion hero teleported in (CL-ANK) 28066 | -2/Research | Intercept squad dispatched 28077 | -2/Research | Spotted Tracker 28078 | -2/Research | Spotted Tracker 28090 | -2/Research | Allies destroyed Tracker 28095 | -2/Research | Allies destroyed Tracker 28105 | -2/Research | Spotted Combat Programmer 28109 | -2/Research | Destroyed Combat Programmer 28118 | -2/Research | Spotted Combat Programmer 28124 | -2/Research | Combat Programmer assimilated allied CL-ANK 28154 | -2/Research | Destroyed CL-ANK 28213 | -2/Research | Found Exp. Targeting Computer 28230 | -2/Research | Discovered new exit (range 24) 28282 | -2/Research | Entered Testing 28283 | -2/Testing | Loaded intel: 91 machine locations 28355 | -2/Testing | Found Prototype Energy Cannon 28355 | -2/Testing | Identified Cld. Nova Cannon 28411 | -2/Testing | Found Prototype Energy Cannon 28411 | -2/Testing | Identified Null Cannon 28657 | -2/Testing | X0-1V1 sent allied H-81 Overseer (x1) 28774 | -2/Testing | Found Prototype Energy Cannon 28774 | -2/Testing | Identified Imp. Potential Cannon 28777 | -2/Testing | Found Imp. Potential Cannon 28782 | -2/Testing | First assault squad dispatched 28788 | -2/Testing | Identified Potential Cannon 28807 | -2/Testing | Discovered exit to Access (range 15) 28864 | -2/Testing | Spotted PH-J21VRSJZ3H 28877 | -2/Testing | Destroyed PH-J21VRSJZ3H 28892 | -2/Testing | Found Corrupted Exp. Weapon Cycler 28933 | -2/Testing | Found Prototype Protection 28933 | -2/Testing | Identified SHELL Armor 29033 | -2/Testing | Found Prototype Hackware 29067 | -2/Testing | X0-1V1 activates XOMVISION 29116 | -2/Testing | Found Exp. Core Analyzer 29218 | -2/Testing | Build established: Scavenger-Tank 29296 | -2/Testing | Spotted Fortress 29326 | -2/Testing | System corruption reached 30% 29425 | -2/Testing | Discovered new exit (range 6) 29425 | -2/Testing | Discovered new exit (range 7) 29444 | -2/Testing | Entered Protoforge 29444 | -2/Protoforge | Spotted Hotshot 29444 | -2/Protoforge | Spotted Hotshot 29444 | -2/Protoforge | Spotted Hotshot 29445 | -2/Protoforge | Loaded intel: 380 machine locations 29446 | -2/Protoforge | Spotted Hotshot 29658 | -2/Protoforge | Superfortress began startup sequence 29682 | -2/Protoforge | Discovered exit to Access (range 21) 29791 | -2/Protoforge | Found Prototype Device 29792 | -2/Protoforge | Identified Cep. Weapon Articulator 29813 | -2/Protoforge | Found Prototype Ballistic Gun 29814 | -2/Protoforge | Identified Cep. XC Strikerail 29817 | -2/Protoforge | Found Cep. XC Strikerail 29820 | -2/Protoforge | Found Cep. XC Strikerail 29874 | -2/Protoforge | X0-1V1 sent you to a vault 29914 | -2/Protoforge | Spotted Immortal 29916 | -2/Protoforge | Spotted Immortal 29917 | -2/Protoforge | Spotted Immortal 29929 | -2/Protoforge | Allies destroyed Immortal 29932 | -2/Protoforge | Allies destroyed Immortal 29941 | -2/Protoforge | Allies destroyed Immortal 29951 | -2/Protoforge | Found Prototype Protection 29951 | -2/Protoforge | Identified Cep. Core Shell 29970 | -2/Protoforge | X0-1V1 vaporized surrounding terrain (radius 22) 29979 | -2/Protoforge | P-80 Master assimilated allied Champion 9a 30048 | -2/Protoforge | Additional patrols dispatched to research labs 30130 | -2/Protoforge | Found Prototype Device 30165 | -2/Protoforge | Spotted Immortal 30165 | -2/Protoforge | Spotted Immortal 30224 | -2/Protoforge | Destroyed Immortal 30233 | -2/Protoforge | Allies destroyed Immortal 30245 | -2/Protoforge | Spotted Decapitator 30245 | -2/Protoforge | Spotted Decapitator 30245 | -2/Protoforge | Spotted Decapitator 30245 | -2/Protoforge | Spotted Decapitator 30260 | -2/Protoforge | Destroyed Decapitator 30264 | -2/Protoforge | Destroyed Decapitator 30272 | -2/Protoforge | Destroyed Decapitator 30276 | -2/Protoforge | Destroyed Decapitator 30283 | -2/Protoforge | Lost 3 allies 30338 | -2/Protoforge | Found Exp. Force Field 30343 | -2/Protoforge | Found Prototype Device 30343 | -2/Protoforge | Identified Exp. Remote Shield 30444 | -2/Protoforge | First assault squad dispatched 30524 | -2/Protoforge | Found Faulty Cep. Zero-point Core 30537 | -2/Protoforge | Identified Crosscalibrator 30540 | -2/Protoforge | Found Faulty Cep. Zero-point Core 30618 | -2/Protoforge | Spotted Hotshot 30622 | -2/Protoforge | Garrison activated, responded to threat 30635 | -2/Protoforge | Spotted Hotshot 30643 | -2/Protoforge | X0-1V1 downgraded hostiles (x1) 30653 | -2/Protoforge | Destroyed Hotshot 30728 | -2/Protoforge | X0-1V1 activates XOMVISION 30755 | -2/Protoforge | Garrison activated, responded to threat 30771 | -2/Protoforge | Terminal network hard line cut 30848 | -2/Protoforge | Spotted Decapitator 30867 | -2/Protoforge | Spotted Hotshot 30878 | -2/Protoforge | Spotted Hotshot 30885 | -2/Protoforge | Spotted Hotshot 30894 | -2/Protoforge | Garrison activated, responded to threat 30896 | -2/Protoforge | Destroyed Hotshot 30898 | -2/Protoforge | Spotted Hotshot 30898 | -2/Protoforge | Destroyed Hotshot 30905 | -2/Protoforge | Destroyed Hotshot 30943 | -2/Protoforge | Spotted Immortal 30946 | -2/Protoforge | Spotted Decapitator 30946 | -2/Protoforge | Spotted Decapitator 30949 | -2/Protoforge | Spotted V560-o 30968 | -2/Protoforge | Spotted Immortal 30969 | -2/Protoforge | Spotted Immortal 30972 | -2/Protoforge | Destroyed Immortal 30994 | -2/Protoforge | Destroyed Immortal 31002 | -2/Protoforge | Destroyed Immortal 31016 | -2/Protoforge | Build established: Scavenger-Gunner 31023 | -2/Protoforge | Destroyed 8 combat bots 31045 | -2/Protoforge | Scanned by Researcher 31059 | -2/Protoforge | Destroyed Hotshot 31068 | -2/Protoforge | Destroyed Hotshot 31071 | -2/Protoforge | Destroyed Hotshot 31074 | -2/Protoforge | Destroyed Decapitator 31075 | -2/Protoforge | Core integrity restored by X0-1V1 (+270) 31076 | -2/Protoforge | Destroyed Decapitator 31096 | -2/Protoforge | Destroyed Decapitator 31136 | -2/Protoforge | Destroyed V560-o 31192 | -2/Protoforge | Destroyed 18 combat bots 31283 | -2/Protoforge | Found Cep. Chromion Battery 31360 | -2/Protoforge | Spotted Decapitator 31360 | -2/Protoforge | Spotted Decapitator 31360 | -2/Protoforge | Spotted Decapitator 31360 | -2/Protoforge | X0-1V1 sent you into danger 31365 | -2/Protoforge | Destroyed Decapitator 31370 | -2/Protoforge | Destroyed Decapitator 31372 | -2/Protoforge | Destroyed Decapitator 31423 | -2/Protoforge | Found Prototype Device 31423 | -2/Protoforge | Identified Exp. Kinecellerator 31428 | -2/Protoforge | Found Prototype Device 31428 | -2/Protoforge | Identified Cep. Networked Targeting System 31574 | -2/Protoforge | Destroyed 9 combat bots 31624 | -2/Protoforge | Destroyed 9 combat bots 31632 | -2/Protoforge | Intercept squad dispatched 31649 | -2/Protoforge | Spotted Tracker 31650 | -2/Protoforge | Spotted Tracker 31656 | -2/Protoforge | Destroyed Tracker 31656 | -2/Protoforge | Destroyed Tracker 31661 | -2/Protoforge | Spotted Combat Programmer 31662 | -2/Protoforge | Spotted Combat Programmer 31667 | -2/Protoforge | Destroyed Combat Programmer 31688 | -2/Protoforge | Destroyed 7 combat bots 31688 | -2/Protoforge | Destroyed Combat Programmer 31756 | -2/Protoforge | Found Cep. Biometal Exoskeleton 31767 | -2/Protoforge | Spotted V452-l 31780 | -2/Protoforge | Spotted V974-o 31790 | -2/Protoforge | Destroyed V974-o 31790 | -2/Protoforge | Spotted V195-s 31799 | -2/Protoforge | Warp Cannon suddenly broke down 31806 | -2/Protoforge | Destroyed V452-l 31812 | -2/Protoforge | Destroyed V195-s 31871 | -2/Protoforge | Destroyed 9 combat bots 31927 | -2/Protoforge | Found Exp. Weapon Cycler 32051 | -2/Protoforge | Destroyed 11 combat bots 32188 | -2/Protoforge | X0-1V1 sent hostile X-87 Electro (x3) 32234 | -2/Protoforge | Build established: Gunner 32248 | -2/Protoforge | Spotted Immortal 32248 | -2/Protoforge | Spotted Immortal 32357 | -2/Protoforge | Destroyed 12 combat bots 32614 | -2/Protoforge | Destroyed 9 combat bots 32645 | -2/Protoforge | Intercept squad dispatched 32662 | -2/Protoforge | Spotted Tracker 32663 | -2/Protoforge | Spotted Tracker 32664 | -2/Protoforge | Destroyed Tracker 32666 | -2/Protoforge | Destroyed Tracker 32675 | -2/Protoforge | Spotted Combat Programmer 32700 | -2/Protoforge | Spotted Combat Programmer 32716 | -2/Protoforge | Destroyed Combat Programmer 32801 | -2/Protoforge | Destroyed 12 combat bots 32934 | -2/Protoforge | Found Cep. Antigrav Storage Unit 33015 | -2/Protoforge | Build established: Tank 33095 | -2/Protoforge | Destroyed 7 combat bots 33142 | -2/Protoforge | Spotted V035-p 33144 | -2/Protoforge | Spotted V243-l 33148 | -2/Protoforge | Spotted V323-w 33148 | -2/Protoforge | Spotted V614-k 33152 | -2/Protoforge | Found Prototype Launcher 33164 | -2/Protoforge | Identified Cep. Rapid Grenade Launcher 33388 | -2/Protoforge | X0-1V1 added 0b10 threat records associated with you (major) 33434 | -2/Protoforge | Intercept squad dispatched 33440 | -2/Protoforge | Spotted Tracker 33440 | -2/Protoforge | Spotted Tracker 33442 | -2/Protoforge | Spotted Tracker 33449 | -2/Protoforge | X0-1V1 whisked you away to safety 33453 | -2/Protoforge | X0-1V1 sent hostile Thug (x4) 33546 | -2/Protoforge | Destroyed Tracker 33553 | -2/Protoforge | Found Prototype Device 33554 | -2/Protoforge | Identified Exp. Phase Shifter 33569 | -2/Protoforge | Spotted Combat Programmer 33597 | -2/Protoforge | Destroyed Combat Programmer 33611 | -2/Protoforge | Forge Plexus network access discovered 33614 | -2/Protoforge | Spotted Decapitator 33615 | -2/Protoforge | Spotted Decapitator 33616 | -2/Protoforge | Spotted Decapitator 33616 | -2/Protoforge | Spotted Decapitator 33616 | -2/Protoforge | Destroyed Tracker 33617 | -2/Protoforge | Spotted Decapitator 33618 | -2/Protoforge | Destroyed Decapitator 33623 | -2/Protoforge | Destroyed Decapitator 33626 | -2/Protoforge | Destroyed Decapitator 33628 | -2/Protoforge | Destroyed Decapitator 33630 | -2/Protoforge | Destroyed Decapitator 33651 | -2/Protoforge | Destroyed 8 combat bots 33699 | -2/Protoforge | Garrison activated, responded to threat 33714 | -2/Protoforge | High security lockdown imminent 33755 | -2/Protoforge | Destroyed Tracker 33794 | -2/Protoforge | High security lockdown engaged 33829 | -2/Protoforge | Spotted Decapitator 33829 | -2/Protoforge | Spotted Decapitator 33829 | -2/Protoforge | Spotted Decapitator 33829 | -2/Protoforge | Spotted Decapitator 33830 | -2/Protoforge | Spotted Striker 33830 | -2/Protoforge | Spotted Executioner 33832 | -2/Protoforge | Spotted Hotshot 33834 | -2/Protoforge | Spotted Hotshot 33834 | -2/Protoforge | Spotted Hotshot 33834 | -2/Protoforge | Spotted Hotshot 33835 | -2/Protoforge | Spotted Hotshot 33839 | -2/Protoforge | Entered Access 33839 | -1/Access | Evolved 2 slots: Power x1, Utility x1 33840 | -1/Access | Loaded intel: 118 machine locations 34006 | -1/Access | Zion Zionite Resupply teleported in 34010 | -1/Access | X0-1V1 released a cloud of subatomizers 34011 | -1/Access | Found Zio. Weapon Casing 34015 | -1/Access | Found Zio. Weapon Casing 34019 | -1/Access | Found Prototype Protection 34019 | -1/Access | Identified Zio. Shade Carapace 34033 | -1/Access | P-80 Master assimilated allied MS-RKX(A) 34036 | -1/Access | High security lockdown imminent 34116 | -1/Access | High security lockdown engaged 34131 | -1/Access | Build established: Generator-Tank 34288 | -1/Access | Destroyed 8 combat bots 34400 | -1/Access | Identified exit to Command 34400 | -1/Access | X0-1V1 revealed exit location to -1/Command 34403 | -1/Access | Destroyed 14 combat bots 34443 | -1/Access | Destroyed Executioner 34464 | -1/Access | Destroyed 8 combat bots 34508 | -1/Access | Destroyed Investigator 34602 | -1/Access | Destroyed Executioner 34603 | -1/Access | Destroyed Striker 34617 | -1/Access | Destroyed Investigator 34623 | -1/Access | Energy Cycler disabled 34641 | -1/Access | Destroyed 11 combat bots 34681 | -1/Access | Destroyed 9 combat bots 34700 | -1/Access | Spotted Executioner 34700 | -1/Access | Spotted Striker 34703 | -1/Access | Destroyed Executioner 34707 | -1/Access | Destroyed Striker 34718 | -1/Access | Sterilization system engaged 34743 | -1/Access | Destroyed 16 combat bots 34772 | -1/Access | Spotted Striker 34772 | -1/Access | Spotted Executioner 34775 | -1/Access | Destroyed Striker 34777 | -1/Access | Destroyed Executioner 34807 | -1/Access | Destroyed Executioner 34812 | -1/Access | Destroyed Striker 34836 | -1/Access | Destroyed Executioner 34872 | -1/Access | Destroyed 29 combat bots 34927 | -1/Access | X0-1V1 activates XOMVISION 34939 | -1/Access | Spotted Executioner 34946 | -1/Access | Spotted Executioner 34954 | -1/Access | Destroyed Executioner 34958 | -1/Access | Destroyed Executioner 35018 | -1/Access | Ambient heat levels rising (+10) 35168 | -1/Access | Ambient heat levels rising (+10) 35318 | -1/Access | Ambient heat levels rising (+10) 35363 | -1/Access | Allied Derelicts emerged from ambush trap array 35372 | -1/Access | Spotted B-99 Colossus 35387 | -1/Access | Spotted B-99 Colossus 35403 | -1/Access | Entered Command 35404 | -1/Command | Loaded intel: 72 machine locations 35415 | -1/Command | Lost 3 allies 35431 | -1/Command | Identified Deep Network Scanner 35432 | -1/Command | Identified System Mapper 35573 | -1/Command | Spotted Striker 35582 | -1/Command | Spotted Striker 35653 | -1/Command | First assault squad dispatched 35658 | -1/Command | Spotted Striker 35661 | -1/Command | Spotted Striker 35675 | -1/Command | Destroyed Striker 35681 | -1/Command | Destroyed Striker 35729 | -1/Command | Found Fusion Bomb Launcher 35731 | -1/Command | Found Fusion Bomb Launcher 35866 | -1/Command | High security lockdown imminent 35937 | -1/Command | Destroyed 15 combat bots 35946 | -1/Command | High security lockdown engaged 36070 | -1/Command | X0-1V1 sent you into danger 36082 | -1/Command | Spotted Executioner 36082 | -1/Command | Spotted Striker 36084 | -1/Command | Destroyed Executioner 36084 | -1/Command | Destroyed Striker 36129 | -1/Command | Destroyed 15 combat bots 36160 | -1/Command | Destroyed Investigator 36204 | -1/Command | Destroyed 12 combat bots 36313 | -1/Command | Spotted Investigator 36316 | -1/Command | Spotted Striker 36316 | -1/Command | Destroyed Investigator 36318 | -1/Command | Destroyed Striker 36323 | -1/Command | Destroyed Executioner 36324 | -1/Command | Spotted Executioner 36335 | -1/Command | Destroyed Executioner 36376 | -1/Command | Destroyed 34 combat bots 36508 | -1/Command | Spotted Investigator 36509 | -1/Command | Destroyed Striker 36511 | -1/Command | Destroyed Executioner 36512 | -1/Command | Spotted Executioner 36512 | -1/Command | Spotted Executioner 36515 | -1/Command | Destroyed Executioner 36517 | -1/Command | Destroyed Executioner 36549 | -1/Command | Destroyed Striker 36551 | -1/Command | Destroyed Investigator 36553 | -1/Command | Destroyed Striker 36573 | -1/Command | Spotted Striker 36573 | -1/Command | Spotted Striker 36573 | -1/Command | Spotted Striker 36575 | -1/Command | Destroyed Striker 36578 | -1/Command | Spotted Executioner 36580 | -1/Command | Destroyed Striker 36580 | -1/Command | Destroyed Executioner 36582 | -1/Command | Destroyed Striker 36619 | -1/Command | X0-1V1 vaporized surrounding terrain (radius 21) 36620 | -1/Command | Destroyed 33 combat bots 36688 | -1/Command | X0-1V1 sent you into danger 36823 | -1/Command | Destroyed Investigator 36849 | -1/Command | X0-1V1 sent you to a vault 36891 | -1/Command | Spotted B-99 Colossus 36898 | -1/Command | X0-1V1 downgraded hostiles (x2) 36924 | -1/Command | Spotted B-90 Cyclops 36937 | -1/Command | Destroyed B-90 Cyclops 36940 | -1/Command | Found Prototype Launcher 36940 | -1/Command | Identified Tactical Quantum Warhead 36942 | -1/Command | X0-1V1 sent you into danger 37034 | -1/Command | Destroyed 16 combat bots 37069 | -1/Command | Spotted Striker 37069 | -1/Command | Spotted Executioner 37069 | -1/Command | Spotted Executioner 37070 | -1/Command | Destroyed Executioner 37072 | -1/Command | Destroyed Executioner 37074 | -1/Command | Destroyed Striker 37095 | -1/Command | Destroyed 8 combat bots 37125 | -1/Command | Spotted Executioner 37125 | -1/Command | Spotted Striker 37125 | -1/Command | Destroyed Executioner 37137 | -1/Command | Destroyed Striker 37279 | -1/Command | X0-1V1 vaporized surrounding terrain (radius 21) 37328 | -1/Command | Destroyed Striker 37332 | -1/Command | Destroyed Executioner 37494 | -1/Command | X0-1V1 caused items to flee you 37640 | -1/Command | X0-1V1 vaporized surrounding terrain (radius 21) 37652 | -1/Command | System corruption reached 10% 37781 | -1/Command | Items stopped fleeing you 37903 | -1/Command | System corruption reached 30% 38159 | -1/Command | Spotted Striker 38165 | -1/Command | Spotted Alpha 7 38172 | -1/Command | Destroyed Striker 38174 | -1/Command | Spotted B-99 Colossus 38174 | -1/Command | Spotted Executioner 38174 | -1/Command | Spotted Alpha 7 38174 | -1/Command | Spotted B-99 Colossus 38174 | -1/Command | Spotted Executioner 38177 | -1/Command | Spotted Executioner 38184 | -1/Command | Spotted Striker 38184 | -1/Command | Spotted Executioner 38185 | -1/Command | Destroyed Executioner 38185 | -1/Command | Destroyed Executioner 38186 | -1/Command | Destroyed Executioner 38191 | -1/Command | Destroyed Striker 38198 | -1/Command | Destroyed Executioner 38219 | -1/Command | Destroyed Alpha 7 38225 | -1/Command | Core integrity fell below 50% 38251 | -1/Command | Lost 7 parts (3p1n1u2w) 38256 | -1/Command | Destroyed Alpha 7 38393 | -1/Command | Found Prototype Device 38394 | -1/Command | Identified Active Sensor Suite 38402 | -1/Command | Found Exp. Shock Absorption System 38518 | -1/Command | Destroyed B-99 Colossus 38527 | -1/Command | Core integrity restored by X0-1V1 (+344) 38593 | -1/Command | Identified exit to Access_0 38593 | -1/Command | X0-1V1 revealed exit location to -1/Access_0 38799 | -1/Command | Build established: Generator-Skirmisher 38865 | -1/Command | Identified exit to Surface 38865 | -1/Command | X0-1V1 revealed exit location to -0/Surface 39537 | -1/Command | Build established: Generator-Gunner 39706 | -1/Command | Destroyed B-99 Colossus 39707 | -1/Command | X0-1V1 activates XOMVISION 40032 | -1/Command | Phase Generator disabled 40610 | -1/Command | Spotted Combat Programmer 40611 | -1/Command | Spotted Combat Programmer 40612 | -1/Command | Spotted M Guard 40636 | -1/Command | Destroyed Combat Programmer 40642 | -1/Command | Spotted M Guard 40655 | -1/Command | X0-1V1 whisked you away to safety 40784 | -1/Command | Build established: Generator-Mutant 40982 | -1/Command | Destroyed M Guard 41007 | -1/Command | Destroyed M Guard 41028 | -1/Command | Found Corrupted Zero-point Reactor 41031 | -1/Command | Found Corrupted Zero-point Reactor 41211 | -1/Command | Found Corrupted Prototype Processor 41363 | -1/Command | Build established: Generator-Gunner 41729 | -1/Command | X0-1V1 sent hostile Y-72 Warden (x2) 41886 | -1/Command | X0-1V1 mutated your Weapon slot to Propulsion slot 42154 | -1/Command | X0-1V1 vaporized surrounding terrain (radius 17) 42176 | -1/Command | Found Corrupted AEGIS Remote Shield 42189 | -1/Command | X0-1V1 sent hostile Fireman (x2) 42356 | -1/Command | Exp. Weapon Cycler reconfigured into Greater Item Mimic 42549 | -1/Command | X0-1V1 sent hostile Y-72 Warden (x2) 42577 | -1/Command | Identified Exp. Targeting Computer 42636 | -1/Command | Met MAIN.C 42646 | -1/Command | X0-1V1 sent allied B-74 Champion (x4) 42648 | -1/Command | 0b10 Conduit disabled 42687 | -1/Command | MAIN.C activated Command garrisons 42688 | -1/Command | Allies destroyed MAIN.C Shell 42726 | -1/Command | Lost 4 allies 42750 | -1/Command | X0-1V1 tapped a No Entrance sign 42751 | -1/Command | Destroyed MAIN.C 42819 | -1/Command | Discovered exit to Surface (range 107) 42819 | -1/Command | Extracted map data and part IDs from MAIN.C's data core 42911 | -1/Command | Spotted Executioner 42911 | -1/Command | Spotted Executioner 42920 | -1/Command | All MAIN.C guards destroyed 42927 | -1/Command | Destroyed Executioner 42931 | -1/Command | Destroyed Executioner 42932 | -1/Command | Spotted B-99 Colossus 42946 | -1/Command | Destroyed B-99 Colossus 42964 | -1/Command | Found Multirail 42968 | -1/Command | Found Exp. Core Analyzer 43228 | -1/Command | Found Singularity Reactor 43244 | -1/Command | Found Exp. System Purifier 43249 | -1/Command | Found Exp. Targeting Computer 43256 | -1/Command | Found Zero-point Reactor 44074 | *** | Establishing 0b11! Last Messages --------------- Exp. System Purifier purges 1% system corruption (1%). Exp. System Purifier purges 1% system corruption (0%). X0-1V1's Piety Tracker suddenly appears amidst shimmering waves of color. Acquired 8 matter. Acquired 3 matter. Acquired 7 matter. X0-1V1 admires the scenery. X0-1V1's Piety Tracker suddenly appears amidst shimmering waves of color. Acquired 16 matter. Acquired 100 matter. Acquired 12 matter. X0-1V1's Piety Tracker suddenly appears amidst shimmering waves of color. X0-1V1 curses 2 of your inventory parts (corrupted). X0-1V1 admires the scenery. Map ----- +----------------------------------------------------+ | #### # ## ##+#####????##############"" "" | | ### #### ## #????????# ## | | ## ## # #????????# ## | | ## ## ## #??????### ## | | ## ##### ########"" """" ## | | ### # " """" ## | | #?# ### "### = """" ## ! | | #?# ! ### #### =[[! """" #####+#+## | | =!### !! ="#!####" ! = ! ####" | | ! "#####"%#" = ==" % % + | | [= =%[*[T"[ = [ ####" | | % [[ = = ! " #??## | | ###"""####*[ ***"############""########???#* | | #?# ###??#""=""###?????????# ##??????????#/ | | #?###????## # #?????????## #???????????# | | #?????????## #??????????# #???????????#!! | | ############"" #??????????# #????????####! | | # ################???????# " | | " # #########"###???????# | | # """ " % %%########## % | | # """T" % %% %"""#### | | # %"" ^ ^ ^ ^ %[ =[!%"% == | | # # ^"""""" %![ =^[%^ == | | + " " "^ ! *[ / = | | # " #" ^" "" "^ % [= ^ [ | | # " ## ^" @" "^ = ! = | | # # ## " " =[ =! ^ | | # % ##### " = ^^ ""## | | # #??## # #""" """## | | ##############??## "######" # | | ###########?????## ##########"= " | | # #?????####;; ;;; #????????## + | | # #?????################?????????# % # | | # """" #??????????????????????????????# # | | # """" #??????????????????????????????# + | | # """" #??????????????????????????????# # | | + """" #??????????????????????????????# + | | # #????????????????????????????######### | | # #????????????????????????????# | | +######+#####????????????????????????????# | | = #?????????????????????????????# "" | | #?????????????????????????????# """ | | #?????????????????????????????# """ | | #?????????????????????????????# "" | | #?????????????????????????????# | | = #?????????????????????????????# | | ############?????????????????????????????######### | | | | | | | +----------------------------------------------------+ Best States ------------- Heat Dissipation 189 Coolant Potential 120 Energy Generation 124 Energy Capacity 3070 Matter Stores 900 Matter Capacity 1000 Sight Range 29 Robot Scan Range 20 Terrain Scan Range 24 Terrain Scan Density 1010 Jamming Range 16 Cloak Strength 4 Armor Coverage 2600 Resistance: KI 32 Resistance: TH 30 Resistance: EX 75 Resistance: EM 74 Resistance: I 30 Resistance: S 30 Resistance: P 30 Propulsion Shielding 15 Utility Shielding 66 Weapon Shielding 100 Weapon Cycling 30 Phase Shifting 20 Evasion (%) 60 Targeting Accuracy 12 Core Analysis 8 Recoil Reduction 6 Particle Charging 25 Kinecelleration 66 Salvage Targeting 1 Offensive Hacking 45 Item Schematics ----------------- Huge Storage Unit | -10/Materials | Hacked Transmission Jammer | -7/Zion | Archive Thermal Shield | -7/Zion | Archive Adv. Terrain Scan Processor | -7/Zion | Archive Fission Core | -7/Zion | Archive Xenon Bombardment Thruster | -7/Zion | Archive Imp. Hardlight Generator | -7/Zion | Archive Flak Gun | -7/Zion | Archive Hvy. Treads | -7/Zion | Archive Adv. Recoil Stabilizer | -7/Zion | Archive Lgt. Angular Momentum Engine | -7/Zion | Archive Gravmag System | -7/Zion | Archive Hvy. Flak Cannon | -7/Zion | Archive Imp. Melee Analysis Suite | -7/Zion | Archive Riot Gun | -7/Zion | Free Battle Cannon | -7/Zion | Free Flamer | -7/Zion | Free Slug Cannon | -7/Zion | Free Combat Drone Bay | -6/Data Miner | Free Exp. Cesium-ion Thruster | -6/Data Miner | Free Imp. Matter Compressor | -6/Data Miner | Free Lgt. Regenerative Plating | -6/Data Miner | Free Hvy. Siege Treads | -6/Data Miner | Free Hvy. Gatling Laser | -6/Data Miner | Free Adv. Actuator Array | -6/Data Miner | Free Hvy. Disruptor Cannon | -6/Data Miner | Free Gyrokinetic Inverter | -6/Data Miner | Free Graphene Brace | -6/Data Miner | Free Imp. Linear Gravjet | -6/Data Miner | Free Adv. Corruption Screen | -6/Data Miner | Free Assault Drone Bay | -4/Zhirov | Free Exp. Heat Sink | -4/Zhirov | Free Exp. Optical Array | -4/Zhirov | Free Imp. Arc Thrower | -4/Zhirov | Free Exp. Energy Well | -2/Protoforge | Archive Cld. Field Propulsion Drive | -2/Protoforge | Archive Exp. Q-thruster | -2/Protoforge | Archive Robot Schematics ------------------ L-41 Fighter | -7/Zion | Archive M-28 Smith | -7/Zion | Archive L-61 Swordsman | -7/Zion | Archive R-10 Processor | -6/Data Miner | Free S-27 Virus | -6/Data Miner | Free Y-64 Sentinel | -6/Data Miner | Free G-50 Soldier | -6/Data Miner | Free W-44 Eye | -6/Data Miner | Free A-15 Conveyor | -6/Data Miner | Free Fabricated ------------ Huge Storage Unit | x1 | -7/Factory Repaired ---------- Nothing Studied --------- Lgt. Treads | -8/Materials | Hacked Hvy. Assault Rifle | -8/Materials | Hacked Hvy. Missile Launcher | -6/Factory | Hacked Alien Tech Used ----------------- Integrated Reactor Transdimensional Reconstructor Integrated Dissipator LC Capacitor Achievements -------------- Betrayal Most Foul Challenges ------------ None Game ------ Seed AluminumSpreadMicroactuators Manual? 0 Play Time 08:44:07 Cumulative 611.2 hours Start 2026.09.02 @ 12:24:07 End 2026.09.04 @ 14:47:17 Sessions 11 Manual Loads 0 Difficulty Rogue Special Mode None Game No. 339 Rogue 339 Adventurer 0 Explorer 0 Win Type 1 Total 42 Types 20/3/9/2/1/1/1/2/1/2 Lore% 97 Gallery% 93 Achievement% 88 Wizard Run 0 Options --------- Layout 1 ASCII 0 Keyboard 0 Movement Numpad Keybinds 0 Fullscreen 1 Font 24/Proggy Map View 50x35 Zoom Use 0% Tactical HUD 0 Map Filters NONE Filters NONE Steam 1 RUN: 06f51404-b001-43eb-83bd-b56fa7057224